Workbook

Sheet 分数计算
A1: 年级编号 | B1: 班级编号 | C1: 班级名称 | D1: 学籍号 | E1: 民族代码 | F1: 姓名 | G1: 性别 | H1: 出生日期 | I1: 家庭住址 | J1: 身高 | K1: 体重 | L1: BMI | M1: BMI得分 | N1: 肺活量 | O1: 得分 | P1: 50米跑 | Q1: 得分 | R1: 坐位体前屈 | S1: 得分 | T1: 一分钟跳绳 | U1: 得分 | V1: 一分钟仰卧起坐 | W1: 得分 | X1: 50米×8往返跑 | Y1: 得分 | Z1: 立定跳远 | AA1: 得分 | AB1: 800米跑 | AC1: 得分 | AD1: 1000米跑 | AE1: 得分 | AF1: 引体向上 | AG1: 得分 | AH1: 总分 | AI1: 等级
A2: 22 | B2: 22011 | C2: 主校区1班 | D2: G110111200612061418 | E2: 1 | F2: 薄一鸣 | G2: 1 | H2: 2006-12-06 | J2: 157.5 | K2: 40.8 | L2: =K2/(J2*J2/10000) -> 16.44746788 | M2: =IF(G2=1,IF(L2<=15.6,80,IF(L2<=22.5,100,IF(L2<=25.2,80,60))),IF(G2=2,IF(L2<=15.2,80,IF(L2<=22.2,100,IF(L2<=24.8,80,60))))) -> 100 | N2: 2067 | O2: =IF(G2=1,IF(N2>=3940,100,IF(N2>=3820,95,IF(N2>=3700,90,IF(N2>=3450,85,IF(N2>=3200,80,IF(N2>=3080,78,IF(N2>=2960,76,IF(N2>=2840,74,IF(N2>=2720,72,IF(N2>=2600,70,IF(N2>=2480,68,IF(N2>=2360,66,IF(N2>=2240,64,IF(N2>=2120,62,IF(N2>=2000,60,IF(N2>=1890,50,IF(N2>=1780,40,IF(N2>=1670,30,IF(N2>=1560,20,IF(N2>=1450,10,0)))))))))))))))))))),IF(G2=2,IF(N2>2900,100,IF(N2>2850,95,IF(N2>2800,90,IF(N2>2650,85,IF(N2>2500,80,IF(N2>2400,78,IF(N2>2300,76,IF(N2>2200,74,IF(N2>2100,72,IF(N2>2000,70,IF(N2>1900,68,IF(N2>1800,66,IF(N2>1700,64,IF(N2>1600,62,IF(N2>1500,60,IF(N2>1460,50,IF(N2>1420,40,IF(N2>1380,30,IF(N2>1340,20,IF(N2>1300,10,0)))))))))))))))))))))) -> 60 | P2: 8.7 | Q2: =IF(G2=1,IF(P2<=7.5,100,IF(P2<=7.6,95,IF(P2<=7.7,90,IF(P2<=7.8,85,IF(P2<=7.9,80,IF(P2<=8.1,78,IF(P2<=8.3,76,IF(P2<=8.5,74,IF(P2<=8.7,72,IF(P2<=8.9,70,IF(P2<=9.1,68,IF(P2<=9.3,66,IF(P2<=9.5,64,IF(P2<=9.7,62,IF(P2<=9.9,60,IF(P2<=10.1,50,IF(P2<=10.3,40,IF(P2<=10.5,30,IF(P2<=10.7,20,IF(P2<=10.9,10,0)))))))))))))))))))),IF(G2=2,IF(P2<=8,100,IF(P2<=8.1,95,IF(P2<=8.2,90,IF(P2<=8.5,85,IF(P2<=8.8,80,IF(P2<=9,78,IF(P2<=9.2,76,IF(P2<=9.4,74,IF(P2<=9.6,72,IF(P2<=9.8,70,IF(P2<=10,68,IF(P2<=10.2,66,IF(P2<=10.4,64,IF(P2<=10.6,62,IF(P2<=10.8,60,IF(P2<=11,50,IF(P2<=11.2,40,IF(P2<=11.4,30,IF(P2<=11.6,20,IF(P2<=11.8,10,0)))))))))))))))))))))) -> 72 | R2: 3.7 | S2: =IF(G2=1,IF(R2>=19.6,100,IF(R2>=17.7,95,IF(R2>=15.8,90,IF(R2>=13.7,85,IF(R2>=11.6,80,IF(R2>=10.3,78,IF(R2>=9,76,IF(R2>=7.7,74,IF(R2>=6.4,72,IF(R2>=5.1,70,IF(R2>=3.8,68,IF(R2>=2.5,66,IF(R2>=1.2,64,IF(R2>=-0.1,62,IF(R2>=-1.4,60,IF(R2>=-2.6,50,IF(R2>=-3.8,40,IF(R2>=-5,30,IF(R2>=-6.2,20,IF(R2>=-7.4,10,0)))))))))))))))))))),IF(G2=2,IF(R2>=22.7,100,IF(R2>=21,95,IF(R2>=19.3,90,IF(R2>=17.6,85,IF(R2>=15.9,80,IF(R2>=14.6,78,IF(R2>=13.3,76,IF(R2>=12,74,IF(R2>=10.7,72,IF(R2>=9.4,70,IF(R2>=8.1,68,IF(R2>=6.8,66,IF(R2>=5.5,64,IF(R2>=4.2,62,IF(R2>=2.9,60,IF(R2>=2.1,50,IF(R2>=1.3,40,IF(R2>=0.5,30,IF(R2>=-0.3,20,IF(R2>=-1.1,10,0)))))))))))))))))))))) -> 66 | Z2: 210 | AA2: =IF(G2=1,IF(Z2>=240,100,IF(Z2>=233,95,IF(Z2>=226,90,IF(Z2>=218,85,IF(Z2>=210,80,IF(Z2>=206,78,IF(Z2>=202,76,IF(Z2>=198,74,IF(Z2>=194,72,IF(Z2>=190,70,IF(Z2>=186,68,IF(Z2>=182,66,IF(Z2>=178,64,IF(Z2>=174,62,IF(Z2>=170,60,IF(Z2>=165,50,IF(Z2>=160,40,IF(Z2>=155,30,IF(Z2>=150,20,IF(Z2>=145,10,0)))))))))))))))))))),IF(G2=2,IF(Z2>=200,100,IF(Z2>=194,95,IF(Z2>=188,90,IF(Z2>=181,85,IF(Z2>=174,80,IF(Z2>=171,78,IF(Z2>=168,76,IF(Z2>=165,74,IF(Z2>=162,72,IF(Z2>=159,70,IF(Z2>=156,68,IF(Z2>=153,66,IF(Z2>=150,64,IF(Z2>=147,62,IF(Z2>=144,60,IF(Z2>=139,50,IF(Z2>=134,40,IF(Z2>=129,30,IF(Z2>=124,20,IF(Z2>=119,10,0)))))))))))))))))))))) -> 80 | AD2: 246 | AE2: =IF(AD2<=230,100,IF(AD2<=235,95,IF(AD2<=240,90,IF(AD2<=247,85,IF(AD2<=255,80,IF(AD2<=260,78,IF(AD2<=265,76,IF(AD2<=270,74,IF(AD2<=275,72,IF(AD2<=280,70,IF(AD2<=285,68,IF(AD2<=290,66,IF(AD2<=295,64,IF(AD2<=300,62,IF(AD2<=305,60,IF(AD2<=325,50,IF(AD2<=345,40,IF(AD2<=365,30,IF(AD2<=385,20,IF(AD2<=405,10,0)))))))))))))))))))) -> 85 | AF2: 10 | AG2: =IF(AF2>=14,100,IF(AF2>=13,95,IF(AF2>=12,90,IF(AF2>=11,85,IF(AF2>=10,80,IF(AF2>=9,76,IF(AF2>=8,72,IF(AF2>=7,68,IF(AF2>=6,64,IF(AF2>=5,60,IF(AF2>=4,50,IF(AF2>=3,40,IF(AF2>=2,30,IF(AF2>=1,20,0)))))))))))))) -> 80 | AH2: =IF(G2=1,M2*0.15+O2*0.15+Q2*0.2+S2*0.1+AA2*0.1+AG2*0.1+AE2*0.2,IF(G2=2,M2*0.15+O2*0.15+Q2*0.2+S2*0.1+AA2*0.1+W2*0.1+AC2*0.2)) -> 78 | AI2: =IF(AH2>=90,"优秀",IF(AH2>=80,"良好",IF(AH2>=60,"及格","不及格"))) -> 及格
A3: 22 | B3: 22011 | C3: 主校区1班 | D3: G110111200707230034 | E3: 1 | F3: 邱俊喆 | G3: 1 | H3: 2007-07-23 | J3: 164.5 | K3: 43.8 | L3: =K3/(J3*J3/10000) -> 16.18610323 | M3: =IF(G3=1,IF(L3<=15.6,80,IF(L3<=22.5,100,IF(L3<=25.2,80,60))),IF(G3=2,IF(L3<=15.2,80,IF(L3<=22.2,100,IF(L3<=24.8,80,60))))) -> 100 | N3: 2999 | O3: =IF(G3=1,IF(N3>=3940,100,IF(N3>=3820,95,IF(N3>=3700,90,IF(N3>=3450,85,IF(N3>=3200,80,IF(N3>=3080,78,IF(N3>=2960,76,IF(N3>=2840,74,IF(N3>=2720,72,IF(N3>=2600,70,IF(N3>=2480,68,IF(N3>=2360,66,IF(N3>=2240,64,IF(N3>=2120,62,IF(N3>=2000,60,IF(N3>=1890,50,IF(N3>=1780,40,IF(N3>=1670,30,IF(N3>=1560,20,IF(N3>=1450,10,0)))))))))))))))))))),IF(G3=2,IF(N3>2900,100,IF(N3>2850,95,IF(N3>2800,90,IF(N3>2650,85,IF(N3>2500,80,IF(N3>2400,78,IF(N3>2300,76,IF(N3>2200,74,IF(N3>2100,72,IF(N3>2000,70,IF(N3>1900,68,IF(N3>1800,66,IF(N3>1700,64,IF(N3>1600,62,IF(N3>1500,60,IF(N3>1460,50,IF(N3>1420,40,IF(N3>1380,30,IF(N3>1340,20,IF(N3>1300,10,0)))))))))))))))))))))) -> 76 | P3: 9.2 | Q3: =IF(G3=1,IF(P3<=7.5,100,IF(P3<=7.6,95,IF(P3<=7.7,90,IF(P3<=7.8,85,IF(P3<=7.9,80,IF(P3<=8.1,78,IF(P3<=8.3,76,IF(P3<=8.5,74,IF(P3<=8.7,72,IF(P3<=8.9,70,IF(P3<=9.1,68,IF(P3<=9.3,66,IF(P3<=9.5,64,IF(P3<=9.7,62,IF(P3<=9.9,60,IF(P3<=10.1,50,IF(P3<=10.3,40,IF(P3<=10.5,30,IF(P3<=10.7,20,IF(P3<=10.9,10,0)))))))))))))))))))),IF(G3=2,IF(P3<=8,100,IF(P3<=8.1,95,IF(P3<=8.2,90,IF(P3<=8.5,85,IF(P3<=8.8,80,IF(P3<=9,78,IF(P3<=9.2,76,IF(P3<=9.4,74,IF(P3<=9.6,72,IF(P3<=9.8,70,IF(P3<=10,68,IF(P3<=10.2,66,IF(P3<=10.4,64,IF(P3<=10.6,62,IF(P3<=10.8,60,IF(P3<=11,50,IF(P3<=11.2,40,IF(P3<=11.4,30,IF(P3<=11.6,20,IF(P3<=11.8,10,0)))))))))))))))))))))) -> 66 | R3: 1.3 | S3: =IF(G3=1,IF(R3>=19.6,100,IF(R3>=17.7,95,IF(R3>=15.8,90,IF(R3>=13.7,85,IF(R3>=11.6,80,IF(R3>=10.3,78,IF(R3>=9,76,IF(R3>=7.7,74,IF(R3>=6.4,72,IF(R3>=5.1,70,IF(R3>=3.8,68,IF(R3>=2.5,66,IF(R3>=1.2,64,IF(R3>=-0.1,62,IF(R3>=-1.4,60,IF(R3>=-2.6,50,IF(R3>=-3.8,40,IF(R3>=-5,30,IF(R3>=-6.2,20,IF(R3>=-7.4,10,0)))))))))))))))))))),IF(G3=2,IF(R3>=22.7,100,IF(R3>=21,95,IF(R3>=19.3,90,IF(R3>=17.6,85,IF(R3>=15.9,80,IF(R3>=14.6,78,IF(R3>=13.3,76,IF(R3>=12,74,IF(R3>=10.7,72,IF(R3>=9.4,70,IF(R3>=8.1,68,IF(R3>=6.8,66,IF(R3>=5.5,64,IF(R3>=4.2,62,IF(R3>=2.9,60,IF(R3>=2.1,50,IF(R3>=1.3,40,IF(R3>=0.5,30,IF(R3>=-0.3,20,IF(R3>=-1.1,10,0)))))))))))))))))))))) -> 64 | Z3: 200 | AA3: =IF(G3=1,IF(Z3>=240,100,IF(Z3>=233,95,IF(Z3>=226,90,IF(Z3>=218,85,IF(Z3>=210,80,IF(Z3>=206,78,IF(Z3>=202,76,IF(Z3>=198,74,IF(Z3>=194,72,IF(Z3>=190,70,IF(Z3>=186,68,IF(Z3>=182,66,IF(Z3>=178,64,IF(Z3>=174,62,IF(Z3>=170,60,IF(Z3>=165,50,IF(Z3>=160,40,IF(Z3>=155,30,IF(Z3>=150,20,IF(Z3>=145,10,0)))))))))))))))))))),IF(G3=2,IF(Z3>=200,100,IF(Z3>=194,95,IF(Z3>=188,90,IF(Z3>=181,85,IF(Z3>=174,80,IF(Z3>=171,78,IF(Z3>=168,76,IF(Z3>=165,74,IF(Z3>=162,72,IF(Z3>=159,70,IF(Z3>=156,68,IF(Z3>=153,66,IF(Z3>=150,64,IF(Z3>=147,62,IF(Z3>=144,60,IF(Z3>=139,50,IF(Z3>=134,40,IF(Z3>=129,30,IF(Z3>=124,20,IF(Z3>=119,10,0)))))))))))))))))))))) -> 74 | AD3: 311 | AE3: =IF(AD3<=230,100,IF(AD3<=235,95,IF(AD3<=240,90,IF(AD3<=247,85,IF(AD3<=255,80,IF(AD3<=260,78,IF(AD3<=265,76,IF(AD3<=270,74,IF(AD3<=275,72,IF(AD3<=280,70,IF(AD3<=285,68,IF(AD3<=290,66,IF(AD3<=295,64,IF(AD3<=300,62,IF(AD3<=305,60,IF(AD3<=325,50,IF(AD3<=345,40,IF(AD3<=365,30,IF(AD3<=385,20,IF(AD3<=405,10,0)))))))))))))))))))) -> 50 | AF3: 2 | AG3: =IF(AF3>=14,100,IF(AF3>=13,95,IF(AF3>=12,90,IF(AF3>=11,85,IF(AF3>=10,80,IF(AF3>=9,76,IF(AF3>=8,72,IF(AF3>=7,68,IF(AF3>=6,64,IF(AF3>=5,60,IF(AF3>=4,50,IF(AF3>=3,40,IF(AF3>=2,30,IF(AF3>=1,20,0)))))))))))))) -> 30 | AH3: =IF(G3=1,M3*0.15+O3*0.15+Q3*0.2+S3*0.1+AA3*0.1+AG3*0.1+AE3*0.2,IF(G3=2,M3*0.15+O3*0.15+Q3*0.2+S3*0.1+AA3*0.1+W3*0.1+AC3*0.2)) -> 66.4 | AI3: =IF(AH3>=90,"优秀",IF(AH3>=80,"良好",IF(AH3>=60,"及格","不及格"))) -> 及格
A4: 22 | B4: 22011 | C4: 主校区1班 | D4: G110111200706277017 | E4: 1 | F4: 陈禹潼 | G4: 1 | H4: 2007-06-27 | J4: 175.5 | K4: 68.6 | L4: 22.27254649 | M4: 100 | N4: 5119 | O4: 100 | P4: 7.6 | Q4: 95 | R4: 13.8 | S4: 85 | Z4: 250 | AA4: 100 | AD4: 234 | AE4: 95 | AF4: 3 | AG4: 40 | AH4: 90.5 | AI4: 优秀
A5: 22 | B5: 22011 | C5: 主校区1班 | D5: G110111200609047017 | E5: 1 | F5: 高墨缘 | G5: 1 | H5: 2006-09-04 | J5: 171 | K5: 101.5 | L5: 34.71153517 | M5: 60 | N5: 3775 | O5: 90 | P5: 10.4 | Q5: 30 | R5: 13.5 | S5: 80 | Z5: 170 | AA5: 60 | AD5: 390 | AE5: 10 | AF5: 0 | AG5: 0 | AH5: 44.5 | AI5: 不及格
A6: 22 | B6: 22011 | C6: 主校区1班 | D6: G231182200612056014 | E6: 1 | F6: 侯毅 | G6: 1 | H6: 2006-12-05 | J6: 172.3 | K6: 73.4 | L6: 24.72438542 | M6: 80 | N6: 3501 | O6: 85 | P6: 9.4 | Q6: 64 | R6: 12 | S6: 80 | Z6: 185 | AA6: 66 | AD6: 270 | AE6: 74 | AF6: 4 | AG6: 50 | AH6: 71.95 | AI6: 及格
A7: 22 | B7: 22011 | C7: 主校区1班 | D7: G110111200611237012 | E7: 1 | F7: 蒋家瑞 | G7: 1 | H7: 2006-11-23 | J7: 167.5 | K7: 66.1 | L7: 23.55981288 | M7: 80 | N7: 2981 | O7: 76 | P7: 9.6 | Q7: 62 | R7: -3 | S7: 40 | Z7: 170 | AA7: 60 | AD7: 284 | AE7: 68 | AF7: 1 | AG7: 20 | AH7: 61.4 | AI7: 及格 | AJ7: 优秀
A8: 22 | B8: 22011 | C8: 主校区1班 | D8: G110111200702184411 | E8: 1 | F8: 晋一鸣 | G8: 1 | H8: 2007-02-18 | J8: 168.5 | K8: 56.8 | L8: 20.00545924 | M8: 100 | N8: 3076 | O8: 76 | P8: 9.5 | Q8: 64 | R8: 9.5 | S8: 76 | Z8: 210 | AA8: 80 | AD8: 284 | AE8: 68 | AF8: 2 | AG8: 30 | AH8: 71.4 | AI8: 及格 | AJ8: =COUNTIF(AI2:AI500,"优秀") -> 1
A9: 22 | B9: 22011 | C9: 主校区1班 | D9: G11011120070830703X | E9: 1 | F9: 梁宇博 | G9: 1 | H9: 2007-08-30 | J9: 173 | K9: 68 | L9: 22.72043837 | M9: 80 | N9: 2716 | O9: 70 | P9: 9 | Q9: 68 | R9: 0 | S9: 62 | Z9: 180 | AA9: 64 | AD9: 275 | AE9: 72 | AF9: 1 | AG9: 20 | AH9: 65.1 | AI9: 及格 | AJ9: 良好
A10: 22 | B10: 22011 | C10: 主校区1班 | D10: G110116200708082717 | E10: 1 | F10: 罗欣然 | G10: 1 | H10: 2007-08-08 | J10: 176 | K10: 86.5 | L10: 27.92484504 | M10: 60 | N10: 3212 | O10: 80 | P10: 9.5 | Q10: 64 | R10: 3 | S10: 66 | Z10: 215 | AA10: 80 | AD10: 302 | AE10: 60 | AF10: 1 | AG10: 20 | AH10: 62.4 | AI10: 及格 | AJ10: =COUNTIF(AI2:AI500,"良好") -> 16
A11: 22 | B11: 22011 | C11: 主校区1班 | D11: G110111200701107019 | E11: 1 | F11: 王添祺 | G11: 1 | H11: 2007-01-10 | J11: 177 | K11: 64.5 | L11: 20.58795365 | M11: 100 | N11: 4009 | O11: 100 | P11: 8 | Q11: 78 | R11: 10.5 | S11: 78 | Z11: 230 | AA11: 90 | AD11: 226 | AE11: 100 | AF11: 6 | AG11: 64 | AH11: 88.8 | AI11: 良好 | AJ11: 及格
A12: 22 | B12: 22011 | C12: 主校区1班 | D12: G110111200612017011 | E12: 1 | F12: 夏江南 | G12: 1 | H12: 2006-12-01 | J12: 167.5 | K12: 68.3 | L12: 24.34395188 | M12: 80 | N12: 2237 | O12: 62 | P12: 9.7 | Q12: 62 | R12: 2.5 | S12: 66 | Z12: 180 | AA12: 64 | AD12: 326 | AE12: 40 | AF12: 1 | AG12: 20 | AH12: 56.7 | AI12: 不及格 | AJ12: =COUNTIF(AI2:AI500,"及格") -> 63
A13: 22 | B13: 22011 | C13: 主校区1班 | D13: G110111200707097050 | E13: 11 | F13: 杨宇涵 | G13: 1 | H13: 2007-07-09 | J13: 179.5 | K13: 131.1 | L13: 40.68869733 | M13: 60 | N13: 2917 | O13: 74 | P13: 12.3 | Q13: 0 | R13: 2 | S13: 64 | Z13: 160 | AA13: 40 | AD13: 390 | AE13: 10 | AF13: 0 | AG13: 0 | AH13: 32.5 | AI13: 不及格 | AJ13: 不及格
A14: 22 | B14: 22011 | C14: 主校区1班 | D14: G110111200708297011 | E14: 1 | F14: 翟家淇 | G14: 1 | H14: 2007-08-29 | J14: 177.5 | K14: 67.9 | L14: 21.55127951 | M14: 100 | N14: 3436 | O14: 80 | P14: 8.8 | Q14: 70 | R14: -5 | S14: 30 | Z14: 160 | AA14: 40 | AD14: 285 | AE14: 68 | AF14: 7 | AG14: 68 | AH14: 68.4 | AI14: 及格 | AJ14: =COUNTIF(AI2:AI500,"不及格") -> 21
A15: 22 | B15: 22011 | C15: 主校区1班 | D15: G110111200707130340 | E15: 1 | F15: 孙静曦 | G15: 2 | H15: 2007-07-13 | J15: 166 | K15: 81.8 | L15: 29.68500508 | M15: 60 | N15: 3538 | O15: 100 | P15: 11.6 | Q15: 20 | R15: 6 | S15: 64 | V15: 30 | W15: =IF(V15>=51,100,IF(V15>=49,95,IF(V15>=47,90,IF(V15>=44,85,IF(V15>=41,80,IF(V15>=39,78,IF(V15>=37,76,IF(V15>=35,74,IF(V15>=33,72,IF(V15>=31,70,IF(V15>=29,68,IF(V15>=27,66,IF(V15>=25,64,IF(V15>=23,62,IF(V15>=21,60,IF(V15>=19,50,IF(V15>=17,40,IF(V15>=15,30,IF(V15>=13,20,IF(V15>=11,10,0)))))))))))))))))))) -> 68 | Z15: 150 | AA15: 64 | AB15: 309 | AC15: =IF(AB15<=210,100,IF(AB15<=217,95,IF(AB15<=224,90,IF(AB15<=232,85,IF(AB15<=240,80,IF(AB15<=245,78,IF(AB15<=250,76,IF(AB15<=255,74,IF(AB15<=260,72,IF(AB15<=265,70,IF(AB15<=270,68,IF(AB15<=275,66,IF(AB15<=280,64,IF(AB15<=285,62,IF(AB15<=290,60,IF(AB15<=300,50,IF(AB15<=310,40,IF(AB15<=320,30,IF(AB15<=330,20,IF(AB15<=340,10,0)))))))))))))))))))) -> 40 | AH15: 55.6 | AI15: 不及格
A16: 22 | B16: 22011 | C16: 主校区1班 | D16: G110111200603207024 | E16: 1 | F16: 孙越涵 | G16: 2 | H16: 2006-03-20 | J16: 149.5 | K16: 68.8 | L16: 30.78265344 | M16: 60 | N16: 1788 | O16: 64 | P16: 12.1 | Q16: 0 | R16: -10 | S16: 0 | V16: 33 | W16: 72 | Z16: 120 | AA16: 10 | AB16: 360 | AC16: 0 | AH16: 26.8 | AI16: 不及格
A17: 22 | B17: 22011 | C17: 主校区1班 | D17: G110111200705167027 | E17: 11 | F17: 柴淼 | G17: 2 | H17: 2007-05-16 | J17: 160 | K17: 55.1 | L17: 21.5234375 | M17: 100 | N17: 2901 | O17: 100 | P17: 10.2 | Q17: 66 | R17: 17 | S17: 80 | V17: 26 | W17: 64 | Z17: 155 | AA17: 66 | AB17: 241 | AC17: 78 | AH17: 79.8 | AI17: 及格
A18: 22 | B18: 22011 | C18: 主校区1班 | D18: G110111200701297043 | E18: 1 | F18: 杜伊任 | G18: 2 | H18: 2007-01-29 | J18: 156 | K18: 61.3 | L18: 25.18902038 | M18: 60 | N18: 2150 | O18: 72 | P18: 9.5 | Q18: 72 | R18: 8 | S18: 66 | V18: 47 | W18: 90 | Z18: 160 | AA18: 70 | AB18: 238 | AC18: 80 | AH18: 72.8 | AI18: 及格
A19: 22 | B19: 22011 | C19: 主校区1班 | D19: G110111200704032825 | E19: 1 | F19: 金一凡 | G19: 2 | H19: 2007-04-03 | J19: 158 | K19: 39.3 | L19: 15.74266944 | M19: 100 | N19: 1774 | O19: 64 | P19: 9.6 | Q19: 72 | R19: 15.5 | S19: 78 | V19: 44 | W19: 85 | Z19: 175 | AA19: 80 | AB19: 201 | AC19: 100 | AH19: 83.3 | AI19: 良好
A20: 22 | B20: 22011 | C20: 主校区1班 | D20: G110111200701142420 | E20: 1 | F20: 李思瑶 | G20: 2 | H20: 2007-01-14 | J20: 163 | K20: 49.3 | L20: 18.55545937 | M20: 100 | N20: 2501 | O20: 80 | P20: 11.7 | Q20: 10 | R20: 22 | S20: 95 | V20: 45 | W20: 85 | Z20: 170 | AA20: 76 | AB20: 226 | AC20: 85 | AH20: 71.6 | AI20: 及格
A21: 22 | B21: 22011 | C21: 主校区1班 | D21: G110111200703177029 | E21: 1 | F21: 李梓姝 | G21: 2 | H21: 2007-03-17 | J21: 156 | K21: 44.3 | L21: 18.20348455 | M21: 100 | N21: 2173 | O21: 72 | P21: 9.9 | Q21: 68 | R21: 9 | S21: 68 | V21: 36 | W21: 74 | Z21: 160 | AA21: 70 | AB21: 218 | AC21: 90 | AH21: 78.6 | AI21: 及格
A22: 22 | B22: 22011 | C22: 主校区1班 | D22: G110111200704224245 | E22: 1 | F22: 苏畅 | G22: 2 | H22: 2007-04-22 | J22: 168 | K22: 81.1 | L22: 28.73441043 | M22: 60 | N22: 2491 | O22: 78 | P22: 13 | Q22: 0 | R22: 5 | S22: 62 | V22: 23 | W22: 62 | Z22: 145 | AA22: 60 | AB22: 298 | AC22: 50 | AH22: 49.1 | AI22: 不及格
A23: 22 | B23: 22011 | C23: 主校区1班 | D23: G110111200611207024 | E23: 1 | F23: 张君唯 | G23: 2 | H23: 2006-11-20 | J23: 172 | K23: 47.9 | L23: 16.19118442 | M23: 100 | N23: 2048 | O23: 70 | P23: 8.8 | Q23: 80 | R23: 12 | S23: 74 | V23: 31 | W23: 70 | Z23: 215 | AA23: 100 | AB23: 207 | AC23: 100 | AH23: 85.9 | AI23: 良好
A24: 22 | B24: 22011 | C24: 主校区1班 | D24: G110111200612217021 | E24: 1 | F24: 张伊含 | G24: 2 | H24: 2006-12-21 | J24: 174.5 | K24: 77.3 | L24: 25.38567007 | M24: 60 | N24: 2411 | O24: 78 | P24: 12.1 | Q24: 0 | R24: 5 | S24: 62 | V24: 36 | W24: 74 | Z24: 135 | AA24: 40 | AB24: 269 | AC24: 68 | AH24: 51.9 | AI24: 不及格
A25: 22 | B25: 22011 | C25: 主校区1班 | D25: G110111200706170324 | E25: 1 | F25: 张雨旸 | G25: 2 | H25: 2007-06-17 | J25: 163.5 | K25: 47.8 | L25: 17.88102386 | M25: 100 | N25: 2199 | O25: 72 | P25: 10.2 | Q25: 66 | R25: 15 | S25: 78 | V25: 40 | W25: 78 | Z25: 190 | AA25: 90 | AB25: 240 | AC25: 80 | AH25: 79.6 | AI25: 及格
A26: 22 | B26: 22011 | C26: 主校区1班 | D26: G371722200610251980 | E26: 1 | F26: 杨雪 | G26: 2 | H26: 2006-10-25 | J26: 168.2 | K26: 85.2 | L26: 30.11532899 | M26: 60 | N26: 3577 | O26: 100 | P26: 11 | Q26: 50 | R26: 15 | S26: 78 | V26: 44 | W26: 85 | Z26: 180 | AA26: 80 | AB26: 259 | AC26: 72 | AH26: 72.7 | AI26: 及格
A27: 22 | B27: 22012 | C27: 主校区2班 | D27: G110111200512151010 | E27: 1 | F27: 王旭 | G27: 1 | H27: 2005-12-15 | J27: 176.5 | K27: 58.2 | L27: 18.68243867 | M27: 100 | N27: 2714 | O27: 70 | P27: 9.8 | Q27: 60 | R27: -2.2 | S27: 50 | Z27: 200 | AA27: 74 | AD27: 281 | AE27: 68 | AF27: 1 | AG27: 20 | AH27: 65.5 | AI27: 及格
A28: 22 | B28: 22012 | C28: 主校区2班 | D28: G130403200610281214 | E28: 11 | F28: 郑家祥 | G28: 1 | H28: 2006-10-28 | J28: 179 | K28: 89.2 | L28: 27.83933086 | M28: 60 | N28: 5417 | O28: 100 | P28: 9.3 | Q28: 66 | R28: 8.3 | S28: 74 | Z28: 205 | AA28: 76 | AD28: 283 | AE28: 68 | AF28: 1 | AG28: 20 | AH28: 67.8 | AI28: 及格
A29: 22 | B29: 22012 | C29: 主校区2班 | D29: G110111200611117010 | E29: 1 | F29: 路家豪 | G29: 1 | H29: 2006-11-11 | J29: 170.5 | K29: 62.6 | L29: 21.53404253 | M29: 100 | N29: 3674 | O29: 85 | P29: 10.3 | Q29: 40 | R29: 14.9 | S29: 85 | Z29: 200 | AA29: 74 | AD29: 342 | AE29: 40 | AF29: 1 | AG29: 20 | AH29: 61.65 | AI29: 及格
A30: 22 | B30: 22012 | C30: 主校区2班 | D30: G110111200706283011 | E30: 1 | F30: 张孟琛 | G30: 1 | H30: 2007-06-28 | J30: 172.5 | K30: 57.1 | L30: 19.18924596 | M30: 100 | N30: 2840 | O30: 74 | P30: 9.6 | Q30: 62 | R30: -1.6 | S30: 50 | Z30: 185 | AA30: 66 | AD30: 243 | AE30: 85 | AF30: 1 | AG30: 20 | AH30: 69.1 | AI30: 及格
A31: 22 | B31: 22012 | C31: 主校区2班 | D31: G110111200708207039 | E31: 1 | F31: 高麒丰 | G31: 1 | H31: 2007-08-20 | J31: 172 | K31: 98.9 | L31: 33.43023256 | M31: 60 | N31: 4502 | O31: 100 | P31: 9.3 | Q31: 66 | R31: 7 | S31: 72 | Z31: 170 | AA31: 60 | AD31: 318 | AE31: 50 | AF31: 1 | AG31: 20 | AH31: 62.4 | AI31: 及格
A32: 22 | B32: 22012 | C32: 主校区2班 | D32: G371722200704233177 | E32: 1 | F32: 高天赐 | G32: 1 | H32: 2007-04-23 | J32: 168.5 | K32: 67.2 | L32: 23.66843065 | M32: 80 | N32: 3077 | O32: 76 | P32: 8.7 | Q32: 72 | R32: 19.1 | S32: 95 | Z32: 185 | AA32: 66 | AD32: 313 | AE32: 50 | AF32: 2 | AG32: 30 | AH32: 66.9 | AI32: 及格
A33: 22 | B33: 22012 | C33: 主校区2班 | D33: G110111200612047018 | E33: 1 | F33: 郜桐正 | G33: 1 | H33: 2006-12-04 | J33: 164 | K33: 58.4 | L33: 21.71326591 | M33: 100 | N33: 2811 | O33: 72 | P33: 8.7 | Q33: 72 | R33: 5.1 | S33: 70 | Z33: 188 | AA33: 68 | AD33: 273 | AE33: 72 | AF33: 1 | AG33: 20 | AH33: 70.4 | AI33: 及格
A34: 22 | B34: 22012 | C34: 主校区2班 | D34: G110111200611027015 | E34: 1 | F34: 刘博 | G34: 1 | H34: 2006-11-02 | J34: 169 | K34: 69.1 | L34: 24.19383075 | M34: 80 | N34: 3641 | O34: 85 | P34: 11 | Q34: 0 | R34: 0.2 | S34: 62 | Z34: 165 | AA34: 50 | AD34: 323 | AE34: 50 | AF34: 1 | AG34: 20 | AH34: 47.95 | AI34: 不及格
A35: 22 | B35: 22012 | C35: 主校区2班 | D35: G110111200708087014 | E35: 1 | F35: 魏鸣一 | G35: 1 | H35: 2007-08-08 | J35: 172.2 | K35: 66.1 | L35: =K35/(J35*J35/10000) -> 22.29128812 | M35: =IF(G35=1,IF(L35<=15.6,80,IF(L35<=22.5,100,IF(L35<=25.2,80,60))),IF(G35=2,IF(L35<=15.2,80,IF(L35<=22.2,100,IF(L35<=24.8,80,60))))) -> 100 | N35: 2617 | O35: =IF(G35=1,IF(N35>=3940,100,IF(N35>=3820,95,IF(N35>=3700,90,IF(N35>=3450,85,IF(N35>=3200,80,IF(N35>=3080,78,IF(N35>=2960,76,IF(N35>=2840,74,IF(N35>=2720,72,IF(N35>=2600,70,IF(N35>=2480,68,IF(N35>=2360,66,IF(N35>=2240,64,IF(N35>=2120,62,IF(N35>=2000,60,IF(N35>=1890,50,IF(N35>=1780,40,IF(N35>=1670,30,IF(N35>=1560,20,IF(N35>=1450,10,0)))))))))))))))))))),IF(G35=2,IF(N35>2900,100,IF(N35>2850,95,IF(N35>2800,90,IF(N35>2650,85,IF(N35>2500,80,IF(N35>2400,78,IF(N35>2300,76,IF(N35>2200,74,IF(N35>2100,72,IF(N35>2000,70,IF(N35>1900,68,IF(N35>1800,66,IF(N35>1700,64,IF(N35>1600,62,IF(N35>1500,60,IF(N35>1460,50,IF(N35>1420,40,IF(N35>1380,30,IF(N35>1340,20,IF(N35>1300,10,0)))))))))))))))))))))) -> 70 | P35: 9.1 | Q35: =IF(G35=1,IF(P35<=7.5,100,IF(P35<=7.6,95,IF(P35<=7.7,90,IF(P35<=7.8,85,IF(P35<=7.9,80,IF(P35<=8.1,78,IF(P35<=8.3,76,IF(P35<=8.5,74,IF(P35<=8.7,72,IF(P35<=8.9,70,IF(P35<=9.1,68,IF(P35<=9.3,66,IF(P35<=9.5,64,IF(P35<=9.7,62,IF(P35<=9.9,60,IF(P35<=10.1,50,IF(P35<=10.3,40,IF(P35<=10.5,30,IF(P35<=10.7,20,IF(P35<=10.9,10,0)))))))))))))))))))),IF(G35=2,IF(P35<=8,100,IF(P35<=8.1,95,IF(P35<=8.2,90,IF(P35<=8.5,85,IF(P35<=8.8,80,IF(P35<=9,78,IF(P35<=9.2,76,IF(P35<=9.4,74,IF(P35<=9.6,72,IF(P35<=9.8,70,IF(P35<=10,68,IF(P35<=10.2,66,IF(P35<=10.4,64,IF(P35<=10.6,62,IF(P35<=10.8,60,IF(P35<=11,50,IF(P35<=11.2,40,IF(P35<=11.4,30,IF(P35<=11.6,20,IF(P35<=11.8,10,0)))))))))))))))))))))) -> 68 | R35: -0.1 | S35: =IF(G35=1,IF(R35>=19.6,100,IF(R35>=17.7,95,IF(R35>=15.8,90,IF(R35>=13.7,85,IF(R35>=11.6,80,IF(R35>=10.3,78,IF(R35>=9,76,IF(R35>=7.7,74,IF(R35>=6.4,72,IF(R35>=5.1,70,IF(R35>=3.8,68,IF(R35>=2.5,66,IF(R35>=1.2,64,IF(R35>=-0.1,62,IF(R35>=-1.4,60,IF(R35>=-2.6,50,IF(R35>=-3.8,40,IF(R35>=-5,30,IF(R35>=-6.2,20,IF(R35>=-7.4,10,0)))))))))))))))))))),IF(G35=2,IF(R35>=22.7,100,IF(R35>=21,95,IF(R35>=19.3,90,IF(R35>=17.6,85,IF(R35>=15.9,80,IF(R35>=14.6,78,IF(R35>=13.3,76,IF(R35>=12,74,IF(R35>=10.7,72,IF(R35>=9.4,70,IF(R35>=8.1,68,IF(R35>=6.8,66,IF(R35>=5.5,64,IF(R35>=4.2,62,IF(R35>=2.9,60,IF(R35>=2.1,50,IF(R35>=1.3,40,IF(R35>=0.5,30,IF(R35>=-0.3,20,IF(R35>=-1.1,10,0)))))))))))))))))))))) -> 62 | Z35: 160 | AA35: =IF(G35=1,IF(Z35>=240,100,IF(Z35>=233,95,IF(Z35>=226,90,IF(Z35>=218,85,IF(Z35>=210,80,IF(Z35>=206,78,IF(Z35>=202,76,IF(Z35>=198,74,IF(Z35>=194,72,IF(Z35>=190,70,IF(Z35>=186,68,IF(Z35>=182,66,IF(Z35>=178,64,IF(Z35>=174,62,IF(Z35>=170,60,IF(Z35>=165,50,IF(Z35>=160,40,IF(Z35>=155,30,IF(Z35>=150,20,IF(Z35>=145,10,0)))))))))))))))))))),IF(G35=2,IF(Z35>=200,100,IF(Z35>=194,95,IF(Z35>=188,90,IF(Z35>=181,85,IF(Z35>=174,80,IF(Z35>=171,78,IF(Z35>=168,76,IF(Z35>=165,74,IF(Z35>=162,72,IF(Z35>=159,70,IF(Z35>=156,68,IF(Z35>=153,66,IF(Z35>=150,64,IF(Z35>=147,62,IF(Z35>=144,60,IF(Z35>=139,50,IF(Z35>=134,40,IF(Z35>=129,30,IF(Z35>=124,20,IF(Z35>=119,10,0)))))))))))))))))))))) -> 40 | AD35: 254 | AE35: =IF(AD35<=230,100,IF(AD35<=235,95,IF(AD35<=240,90,IF(AD35<=247,85,IF(AD35<=255,80,IF(AD35<=260,78,IF(AD35<=265,76,IF(AD35<=270,74,IF(AD35<=275,72,IF(AD35<=280,70,IF(AD35<=285,68,IF(AD35<=290,66,IF(AD35<=295,64,IF(AD35<=300,62,IF(AD35<=305,60,IF(AD35<=325,50,IF(AD35<=345,40,IF(AD35<=365,30,IF(AD35<=385,20,IF(AD35<=405,10,0)))))))))))))))))))) -> 80 | AF35: 1 | AG35: =IF(AF35>=14,100,IF(AF35>=13,95,IF(AF35>=12,90,IF(AF35>=11,85,IF(AF35>=10,80,IF(AF35>=9,76,IF(AF35>=8,72,IF(AF35>=7,68,IF(AF35>=6,64,IF(AF35>=5,60,IF(AF35>=4,50,IF(AF35>=3,40,IF(AF35>=2,30,IF(AF35>=1,20,0)))))))))))))) -> 20 | AH35: =IF(G35=1,M35*0.15+O35*0.15+Q35*0.2+S35*0.1+AA35*0.1+AG35*0.1+AE35*0.2,IF(G35=2,M35*0.15+O35*0.15+Q35*0.2+S35*0.1+AA35*0.1+W35*0.1+AC35*0.2)) -> 67.3 | AI35: =IF(AH35>=90,"优秀",IF(AH35>=80,"良好",IF(AH35>=60,"及格","不及格"))) -> 及格
A36: 22 | B36: 22012 | C36: 主校区2班 | D36: G110111200609297059 | E36: 11 | F36: 杨佳星 | G36: 1 | H36: 2006-09-29 | J36: 160.5 | K36: 63.9 | L36: 24.80565988 | M36: 80 | N36: 2677 | O36: 70 | P36: 8.5 | Q36: 74 | R36: 0.3 | S36: 62 | Z36: 185 | AA36: 66 | AD36: 260 | AE36: 78 | AF36: 0 | AG36: 0 | AH36: 65.7 | AI36: 及格
A37: 22 | B37: 22012 | C37: 主校区2班 | D37: G110111200707073817 | E37: 1 | F37: 李林浩 | G37: 1 | H37: 2007-07-07 | J37: 159 | K37: 46.7 | L37: 18.47237055 | M37: 100 | N37: 3031 | O37: 76 | P37: 11.3 | Q37: 0 | R37: -16.5 | S37: 0 | Z37: 175 | AA37: 62 | AD37: 321 | AE37: 50 | AF37: 0 | AG37: 0 | AH37: 42.6 | AI37: 不及格
A38: 22 | B38: 22012 | C38: 主校区2班 | D38: G110111200705097014 | E38: 1 | F38: 杨韫琦 | G38: 1 | H38: 2007-05-09 | J38: 168 | K38: 68.7 | L38: 24.34098639 | M38: 80 | N38: 2917 | O38: 74 | P38: 7.6 | Q38: 95 | R38: 3.2 | S38: 66 | Z38: 230 | AA38: 90 | AD38: 231 | AE38: 95 | AF38: 1 | AG38: 20 | AH38: 78.7 | AI38: 及格
A39: 22 | B39: 22012 | C39: 主校区2班 | D39: G150929200703183319 | E39: 1 | F39: 王艺衡 | G39: 1 | H39: 2007-03-18 | J39: 171.4 | K39: 60 | L39: 20.42347392 | M39: 100 | N39: 2731 | O39: 72 | P39: 8.3 | Q39: 76 | R39: 16.1 | S39: 90 | Z39: 230 | AA39: 90 | AD39: 308 | AE39: 50 | AF39: 5 | AG39: 60 | AH39: 75 | AI39: 及格
A40: 22 | B40: 22012 | C40: 主校区2班 | D40: G11011120060705706X | E40: 1 | F40: 刘梓萱 | G40: 2 | H40: 2006-07-05 | J40: 160.5 | K40: 49.2 | L40: 19.09919352 | M40: 100 | N40: 2259 | O40: 74 | P40: 11.1 | Q40: 40 | R40: 12 | S40: 74 | V40: 44 | W40: =IF(V40>=51,100,IF(V40>=49,95,IF(V40>=47,90,IF(V40>=44,85,IF(V40>=41,80,IF(V40>=39,78,IF(V40>=37,76,IF(V40>=35,74,IF(V40>=33,72,IF(V40>=31,70,IF(V40>=29,68,IF(V40>=27,66,IF(V40>=25,64,IF(V40>=23,62,IF(V40>=21,60,IF(V40>=19,50,IF(V40>=17,40,IF(V40>=15,30,IF(V40>=13,20,IF(V40>=11,10,0)))))))))))))))))))) -> 85 | Z40: 150 | AA40: 64 | AB40: 224 | AC40: =IF(AB40<=210,100,IF(AB40<=217,95,IF(AB40<=224,90,IF(AB40<=232,85,IF(AB40<=240,80,IF(AB40<=245,78,IF(AB40<=250,76,IF(AB40<=255,74,IF(AB40<=260,72,IF(AB40<=265,70,IF(AB40<=270,68,IF(AB40<=275,66,IF(AB40<=280,64,IF(AB40<=285,62,IF(AB40<=290,60,IF(AB40<=300,50,IF(AB40<=310,40,IF(AB40<=320,30,IF(AB40<=330,20,IF(AB40<=340,10,0)))))))))))))))))))) -> 90 | AH40: 74.4 | AI40: 及格
A41: 22 | B41: 22012 | C41: 主校区2班 | D41: G110111200705212625 | E41: 11 | F41: 方晴 | G41: 2 | H41: 2007-05-21 | J41: 167 | K41: 67.8 | L41: 24.31066012 | M41: 80 | N41: 2579 | O41: 80 | P41: 11.8 | Q41: 10 | R41: 7.2 | S41: 66 | V41: 24 | W41: 62 | Z41: 150 | AA41: 64 | AB41: 281 | AC41: 62 | AH41: 57.6 | AI41: 不及格
A42: 22 | B42: 22012 | C42: 主校区2班 | D42: G110106200701112124 | E42: 1 | F42: 贾唯嘉 | G42: 2 | H42: 2007-01-11 | J42: 165 | K42: 57.8 | L42: 21.23048669 | M42: 100 | N42: 1731 | O42: 64 | P42: 10.8 | Q42: 60 | R42: 10.1 | S42: 70 | V42: 38 | W42: 76 | Z42: 150 | AA42: 64 | AB42: 238 | AC42: 80 | AH42: 73.6 | AI42: 及格
A43: 22 | B43: 22012 | C43: 主校区2班 | D43: G411524200701188547 | E43: 1 | F43: 江淼 | G43: 2 | H43: 2007-01-18 | J43: 155.5 | K43: 41.1 | L43: 16.99734287 | M43: 100 | N43: 1704 | O43: 64 | P43: 9.8 | Q43: 70 | R43: -11 | S43: 0 | V43: 30 | W43: 68 | Z43: 160 | AA43: 70 | AB43: 240 | AC43: 80 | AH43: 68.4 | AI43: 及格
A44: 22 | B44: 22012 | C44: 主校区2班 | D44: G110111200704152624 | E44: 1 | F44: 李昕格 | G44: 2 | H44: 2007-04-15 | J44: 166.5 | K44: 65.4 | L44: 23.59115873 | M44: 80 | N44: 2533 | O44: 80 | P44: 14.4 | Q44: 0 | R44: 7.7 | S44: 66 | V44: 31 | W44: 70 | Z44: 120 | AA44: 10 | AB44: 286 | AC44: 60 | AH44: 50.6 | AI44: 不及格
A45: 22 | B45: 22012 | C45: 主校区2班 | D45: G110111200610316528 | E45: 1 | F45: 吕梓琳 | G45: 2 | H45: 2006-10-31 | J45: 163.8 | K45: 51 | L45: 19.00826077 | M45: 100 | N45: 1568 | O45: 60 | P45: 11.1 | Q45: 40 | R45: 16.9 | S45: 80 | V45: 39 | W45: 78 | Z45: 145 | AA45: 60 | AB45: 223 | AC45: 90 | AH45: 71.8 | AI45: 及格
A46: 22 | B46: 22012 | C46: 主校区2班 | D46: G110111200609227042 | E46: 1 | F46: 邵己珊 | G46: 2 | H46: 2006-09-22 | J46: 158.5 | K46: 41.5 | L46: 16.51922101 | M46: 100 | N46: 2001 | O46: 70 | P46: 10.5 | Q46: 62 | R46: 13.3 | S46: 76 | V46: 37 | W46: 76 | Z46: 165 | AA46: 74 | AB46: 224 | AC46: 90 | AH46: 78.5 | AI46: 及格
A47: 22 | B47: 22012 | C47: 主校区2班 | D47: G110111200708312621 | E47: 1 | F47: 王佳伊 | G47: 2 | H47: 2007-08-31 | J47: 156 | K47: 64.4 | L47: 26.46285339 | M47: 60 | N47: 2512 | O47: 80 | P47: 10.8 | Q47: 60 | R47: 3.5 | S47: 60 | V47: 30 | W47: 68 | Z47: 155 | AA47: 66 | AB47: 249 | AC47: 76 | AH47: 67.6 | AI47: 及格
A48: 22 | B48: 22012 | C48: 主校区2班 | D48: G110111200704037028 | E48: 1 | F48: 王欣 | G48: 2 | H48: 2007-04-03 | J48: 152 | K48: 39.5 | L48: 17.09660665 | M48: 100 | N48: 1316 | O48: 10 | P48: 11.6 | Q48: 20 | R48: 6.7 | S48: 64 | V48: 33 | W48: 72 | Z48: 130 | AA48: 30 | AB48: 255 | AC48: 74 | AH48: 51.9 | AI48: 不及格
A49: 22 | B49: 22012 | C49: 主校区2班 | D49: G110111200703212023 | E49: 1 | F49: 许蕊 | G49: 2 | H49: 2007-03-21 | J49: 159 | K49: 56.2 | L49: 22.2301333 | M49: 80 | N49: 2173 | O49: 72 | P49: 9.6 | Q49: 72 | R49: 9.3 | S49: 68 | V49: 50 | W49: 95 | Z49: 165 | AA49: 74 | AB49: 211 | AC49: 95 | AH49: 79.9 | AI49: 及格
A50: 22 | B50: 22012 | C50: 主校区2班 | D50: G110111200705227026 | E50: 1 | F50: 杨昕雨 | G50: 2 | H50: 2007-05-22 | J50: 164.5 | K50: 50.2 | L50: 18.55119594 | M50: 100 | N50: 3011 | O50: 100 | P50: 9.7 | Q50: 70 | R50: 24.1 | S50: 100 | V50: 48 | W50: 90 | Z50: 180 | AA50: 80 | AB50: 224 | AC50: 90 | AH50: 89 | AI50: 良好
A51: 22 | B51: 22012 | C51: 主校区2班 | D51: G110111200612281429 | E51: 1 | F51: 杨粤涵 | G51: 2 | H51: 2006-12-28 | J51: 155.5 | K51: 55.3 | L51: 22.86990416 | M51: 80 | N51: 1832 | O51: 66 | P51: 11.4 | Q51: 30 | R51: 11.4 | S51: 72 | V51: 45 | W51: 85 | Z51: 145 | AA51: 60 | AB51: 225 | AC51: 85 | AH51: 66.6 | AI51: 及格
A52: 22 | B52: 22012 | C52: 主校区2班 | D52: G110111200609277023 | E52: 1 | F52: 张艺馨 | G52: 2 | H52: 2006-09-27 | J52: 164.8 | K52: 44.5 | L52: 16.38496795 | M52: 100 | N52: 2372 | O52: 76 | P52: 9.5 | Q52: 72 | R52: 17.9 | S52: 85 | V52: 30 | W52: 68 | Z52: 165 | AA52: 74 | AB52: 263 | AC52: 70 | AH52: 77.5 | AI52: 及格
A53: 22 | B53: 22013 | C53: 主校区3班 | D53: G110111200705281014 | E53: 2 | F53: 张竣垚 | G53: 1 | H53: 2007-05-28 | J53: 159 | K53: 65.4 | L53: 25.86922986 | M53: 60 | N53: 2904 | O53: 74 | P53: 8.6 | Q53: 72 | R53: -2.9 | S53: 40 | Z53: 195 | AA53: 72 | AD53: 271 | AE53: 72 | AF53: 1 | AG53: 20 | AH53: 62.1 | AI53: 及格
A54: 22 | B54: 22013 | C54: 主校区3班 | D54: G411681200708223619 | E54: 1 | F54: 李坤洋 | G54: 1 | H54: 2007-08-22 | J54: 168 | K54: 47.2 | L54: 16.72335601 | M54: 100 | N54: 3017 | O54: 76 | P54: 8.6 | Q54: 72 | R54: 7.3 | S54: 72 | Z54: 200 | AA54: 74 | AD54: 263 | AE54: 76 | AF54: 1 | AG54: 20 | AH54: 72.6 | AI54: 及格
A55: 22 | B55: 22013 | C55: 主校区3班 | D55: G110111200611306516 | E55: 1 | F55: 张琪 | G55: 1 | H55: 2006-11-30 | J55: 153.5 | K55: 32.3 | L55: 13.70836826 | M55: 80 | N55: 2307 | O55: 64 | P55: 8.2 | Q55: 76 | R55: 3.3 | S55: 66 | Z55: 205 | AA55: 76 | AD55: 259 | AE55: 78 | AF55: 3 | AG55: 40 | AH55: 70.6 | AI55: 及格
A56: 22 | B56: 22013 | C56: 主校区3班 | D56: G110111200702097019 | E56: 1 | F56: 冯粟 | G56: 1 | H56: 2007-02-09 | J56: 173.2 | K56: 57.9 | L56: 19.30113233 | M56: 100 | N56: 2140 | O56: 62 | P56: 10.5 | Q56: 30 | R56: 1.2 | S56: 64 | Z56: 175 | AA56: 62 | AD56: 315 | AE56: 50 | AF56: 1 | AG56: 20 | AH56: 54.9 | AI56: 不及格
A57: 22 | B57: 22013 | C57: 主校区3班 | D57: G110111200704144413 | E57: 1 | F57: 郭子赫 | G57: 1 | H57: 2007-04-14 | J57: 171 | K57: 65.2 | L57: 22.29745905 | M57: 100 | N57: 3235 | O57: 80 | P57: 8.1 | Q57: 78 | R57: -9.8 | S57: 0 | Z57: 205 | AA57: 76 | AD57: 247 | AE57: 85 | AF57: 4 | AG57: 50 | AH57: 72.2 | AI57: 及格
A58: 22 | B58: 22013 | C58: 主校区3班 | D58: G110111200708157019 | E58: 1 | F58: 黄汐斌 | G58: 1 | H58: 2007-08-15 | J58: 158 | K58: 31.4 | L58: 12.57811248 | M58: 80 | N58: 2000 | O58: 60 | P58: 10.4 | Q58: 30 | R58: -16.4 | S58: 0 | Z58: 150 | AA58: 20 | AD58: 289 | AE58: 66 | AF58: 0 | AG58: 0 | AH58: 42.2 | AI58: 不及格
A59: 22 | B59: 22013 | C59: 主校区3班 | D59: G110111200706252610 | E59: 1 | F59: 李友智 | G59: 1 | H59: 2007-06-25 | J59: 168.4 | K59: 76.9 | L59: 27.11703274 | M59: 60 | N59: 2980 | O59: 76 | P59: 10.2 | Q59: 40 | R59: -2 | S59: 50 | Z59: 160 | AA59: 40 | AD59: 342 | AE59: 40 | AF59: 0 | AG59: 0 | AH59: 45.4 | AI59: 不及格
A60: 22 | B60: 22013 | C60: 主校区3班 | D60: G110111200707187013 | E60: 1 | F60: 李泽良 | G60: 1 | H60: 2007-07-18 | J60: 165 | K60: 51.3 | L60: 18.84297521 | M60: 100 | N60: 3296 | O60: 80 | P60: 7.8 | Q60: 85 | R60: 6.4 | S60: 72 | Z60: 210 | AA60: 80 | AD60: 253 | AE60: 80 | AF60: 3 | AG60: 40 | AH60: 79.2 | AI60: 及格
A61: 22 | B61: 22013 | C61: 主校区3班 | D61: G110111200610300331 | E61: 1 | F61: 王梓岳 | G61: 1 | H61: 2006-10-30 | J61: 171.5 | K61: 55.9 | L61: 19.00568641 | M61: 100 | N61: 2986 | O61: 76 | P61: 7.4 | Q61: 100 | R61: 12.4 | S61: 80 | Z61: 235 | AA61: 95 | AD61: 260 | AE61: 78 | AF61: 7 | AG61: 68 | AH61: 86.3 | AI61: 良好
A62: 22 | B62: 22013 | C62: 主校区3班 | D62: G13082420061222601X | E62: 11 | F62: 徐星宇 | G62: 1 | H62: 2006-12-22 | J62: 176.2 | K62: 61.2 | L62: 19.71240503 | M62: 100 | N62: 3020 | O62: 76 | P62: 8.2 | Q62: 76 | R62: 7.5 | S62: 72 | Z62: 190 | AA62: 70 | AD62: 261 | AE62: 76 | AF62: 2 | AG62: 30 | AH62: 74 | AI62: 及格
A63: 22 | B63: 22013 | C63: 主校区3班 | D63: G110111200706242615 | E63: 11 | F63: 许博宇 | G63: 1 | H63: 2007-06-24 | J63: 165 | K63: 48.7 | L63: 17.88797062 | M63: 100 | N63: 2625 | O63: 70 | P63: 7.8 | Q63: 85 | R63: -1.1 | S63: 60 | Z63: 210 | AA63: 80 | AD63: 288 | AE63: 66 | AF63: 2 | AG63: 30 | AH63: 72.7 | AI63: 及格
A64: 22 | B64: 22013 | C64: 主校区3班 | D64: G110111200703307014 | E64: 1 | F64: 张宇航 | G64: 1 | H64: 2007-03-30 | J64: 158 | K64: 58 | L64: 23.23345618 | M64: 80 | N64: 2962 | O64: 76 | P64: 8.4 | Q64: 74 | R64: 3.4 | S64: 66 | Z64: 205 | AA64: 76 | AD64: 280 | AE64: 70 | AF64: 1 | AG64: 20 | AH64: 68.4 | AI64: 及格
A65: 22 | B65: 22013 | C65: 主校区3班 | D65: G110111200708232840 | E65: 1 | F65: 程思涵 | G65: 2 | H65: 2007-08-23 | J65: 160.4 | K65: 49.6 | L65: 19.27848707 | M65: 100 | N65: 2630 | O65: 80 | P65: 9.5 | Q65: 72 | R65: 9.7 | S65: 70 | V65: 47 | W65: =IF(V65>=51,100,IF(V65>=49,95,IF(V65>=47,90,IF(V65>=44,85,IF(V65>=41,80,IF(V65>=39,78,IF(V65>=37,76,IF(V65>=35,74,IF(V65>=33,72,IF(V65>=31,70,IF(V65>=29,68,IF(V65>=27,66,IF(V65>=25,64,IF(V65>=23,62,IF(V65>=21,60,IF(V65>=19,50,IF(V65>=17,40,IF(V65>=15,30,IF(V65>=13,20,IF(V65>=11,10,0)))))))))))))))))))) -> 90 | Z65: 170 | AA65: 76 | AB65: 230 | AC65: =IF(AB65<=210,100,IF(AB65<=217,95,IF(AB65<=224,90,IF(AB65<=232,85,IF(AB65<=240,80,IF(AB65<=245,78,IF(AB65<=250,76,IF(AB65<=255,74,IF(AB65<=260,72,IF(AB65<=265,70,IF(AB65<=270,68,IF(AB65<=275,66,IF(AB65<=280,64,IF(AB65<=285,62,IF(AB65<=290,60,IF(AB65<=300,50,IF(AB65<=310,40,IF(AB65<=320,30,IF(AB65<=330,20,IF(AB65<=340,10,0)))))))))))))))))))) -> 85 | AE65: =IF(AD65<=230,100,IF(AD65<=235,95,IF(AD65<=240,90,IF(AD65<=247,85,IF(AD65<=255,80,IF(AD65<=260,78,IF(AD65<=265,76,IF(AD65<=270,74,IF(AD65<=275,72,IF(AD65<=280,70,IF(AD65<=285,68,IF(AD65<=290,66,IF(AD65<=295,64,IF(AD65<=300,62,IF(AD65<=305,60,IF(AD65<=325,50,IF(AD65<=345,40,IF(AD65<=365,30,IF(AD65<=385,20,IF(AD65<=405,10,0)))))))))))))))))))) -> 100 | AG65: =IF(AF65>=14,100,IF(AF65>=13,95,IF(AF65>=12,90,IF(AF65>=11,85,IF(AF65>=10,80,IF(AF65>=9,76,IF(AF65>=8,72,IF(AF65>=7,68,IF(AF65>=6,64,IF(AF65>=5,60,IF(AF65>=4,50,IF(AF65>=3,40,IF(AF65>=2,30,IF(AF65>=1,20,0)))))))))))))) -> 0 | AH65: 82 | AI65: 良好
A66: 22 | B66: 22013 | C66: 主校区3班 | D66: G11011120070416262X | E66: 1 | F66: 曹雨霏 | G66: 2 | H66: 2007-04-16 | J66: 158 | K66: 47.6 | L66: 19.06745714 | M66: 100 | N66: 2652 | O66: 85 | P66: 8.8 | Q66: 80 | R66: 12.4 | S66: 74 | V66: 39 | W66: 78 | Z66: 190 | AA66: 90 | AB66: 210 | AC66: 100 | AE66: 100 | AG66: 0 | AH66: 87.95 | AI66: 良好
A67: 22 | B67: 22013 | C67: 主校区3班 | D67: G110111200706030321 | E67: 1 | F67: 董芊 | G67: 2 | H67: 2007-06-03 | J67: 167.3 | K67: 72.7 | L67: =K67/(J67*J67/10000) -> 25.97422085 | M67: =IF(G67=1,IF(L67<=15.6,80,IF(L67<=22.5,100,IF(L67<=25.2,80,60))),IF(G67=2,IF(L67<=15.2,80,IF(L67<=22.2,100,IF(L67<=24.8,80,60))))) -> 60 | N67: 2677 | O67: =IF(G67=1,IF(N67>=3940,100,IF(N67>=3820,95,IF(N67>=3700,90,IF(N67>=3450,85,IF(N67>=3200,80,IF(N67>=3080,78,IF(N67>=2960,76,IF(N67>=2840,74,IF(N67>=2720,72,IF(N67>=2600,70,IF(N67>=2480,68,IF(N67>=2360,66,IF(N67>=2240,64,IF(N67>=2120,62,IF(N67>=2000,60,IF(N67>=1890,50,IF(N67>=1780,40,IF(N67>=1670,30,IF(N67>=1560,20,IF(N67>=1450,10,0)))))))))))))))))))),IF(G67=2,IF(N67>2900,100,IF(N67>2850,95,IF(N67>2800,90,IF(N67>2650,85,IF(N67>2500,80,IF(N67>2400,78,IF(N67>2300,76,IF(N67>2200,74,IF(N67>2100,72,IF(N67>2000,70,IF(N67>1900,68,IF(N67>1800,66,IF(N67>1700,64,IF(N67>1600,62,IF(N67>1500,60,IF(N67>1460,50,IF(N67>1420,40,IF(N67>1380,30,IF(N67>1340,20,IF(N67>1300,10,0)))))))))))))))))))))) -> 85 | P67: 9.8 | Q67: =IF(G67=1,IF(P67<=7.5,100,IF(P67<=7.6,95,IF(P67<=7.7,90,IF(P67<=7.8,85,IF(P67<=7.9,80,IF(P67<=8.1,78,IF(P67<=8.3,76,IF(P67<=8.5,74,IF(P67<=8.7,72,IF(P67<=8.9,70,IF(P67<=9.1,68,IF(P67<=9.3,66,IF(P67<=9.5,64,IF(P67<=9.7,62,IF(P67<=9.9,60,IF(P67<=10.1,50,IF(P67<=10.3,40,IF(P67<=10.5,30,IF(P67<=10.7,20,IF(P67<=10.9,10,0)))))))))))))))))))),IF(G67=2,IF(P67<=8,100,IF(P67<=8.1,95,IF(P67<=8.2,90,IF(P67<=8.5,85,IF(P67<=8.8,80,IF(P67<=9,78,IF(P67<=9.2,76,IF(P67<=9.4,74,IF(P67<=9.6,72,IF(P67<=9.8,70,IF(P67<=10,68,IF(P67<=10.2,66,IF(P67<=10.4,64,IF(P67<=10.6,62,IF(P67<=10.8,60,IF(P67<=11,50,IF(P67<=11.2,40,IF(P67<=11.4,30,IF(P67<=11.6,20,IF(P67<=11.8,10,0)))))))))))))))))))))) -> 70 | R67: 21.3 | S67: =IF(G67=1,IF(R67>=19.6,100,IF(R67>=17.7,95,IF(R67>=15.8,90,IF(R67>=13.7,85,IF(R67>=11.6,80,IF(R67>=10.3,78,IF(R67>=9,76,IF(R67>=7.7,74,IF(R67>=6.4,72,IF(R67>=5.1,70,IF(R67>=3.8,68,IF(R67>=2.5,66,IF(R67>=1.2,64,IF(R67>=-0.1,62,IF(R67>=-1.4,60,IF(R67>=-2.6,50,IF(R67>=-3.8,40,IF(R67>=-5,30,IF(R67>=-6.2,20,IF(R67>=-7.4,10,0)))))))))))))))))))),IF(G67=2,IF(R67>=22.7,100,IF(R67>=21,95,IF(R67>=19.3,90,IF(R67>=17.6,85,IF(R67>=15.9,80,IF(R67>=14.6,78,IF(R67>=13.3,76,IF(R67>=12,74,IF(R67>=10.7,72,IF(R67>=9.4,70,IF(R67>=8.1,68,IF(R67>=6.8,66,IF(R67>=5.5,64,IF(R67>=4.2,62,IF(R67>=2.9,60,IF(R67>=2.1,50,IF(R67>=1.3,40,IF(R67>=0.5,30,IF(R67>=-0.3,20,IF(R67>=-1.1,10,0)))))))))))))))))))))) -> 95 | V67: 27 | W67: 66 | Z67: 180 | AA67: =IF(G67=1,IF(Z67>=240,100,IF(Z67>=233,95,IF(Z67>=226,90,IF(Z67>=218,85,IF(Z67>=210,80,IF(Z67>=206,78,IF(Z67>=202,76,IF(Z67>=198,74,IF(Z67>=194,72,IF(Z67>=190,70,IF(Z67>=186,68,IF(Z67>=182,66,IF(Z67>=178,64,IF(Z67>=174,62,IF(Z67>=170,60,IF(Z67>=165,50,IF(Z67>=160,40,IF(Z67>=155,30,IF(Z67>=150,20,IF(Z67>=145,10,0)))))))))))))))))))),IF(G67=2,IF(Z67>=200,100,IF(Z67>=194,95,IF(Z67>=188,90,IF(Z67>=181,85,IF(Z67>=174,80,IF(Z67>=171,78,IF(Z67>=168,76,IF(Z67>=165,74,IF(Z67>=162,72,IF(Z67>=159,70,IF(Z67>=156,68,IF(Z67>=153,66,IF(Z67>=150,64,IF(Z67>=147,62,IF(Z67>=144,60,IF(Z67>=139,50,IF(Z67>=134,40,IF(Z67>=129,30,IF(Z67>=124,20,IF(Z67>=119,10,0)))))))))))))))))))))) -> 80 | AB67: 271 | AC67: 66 | AE67: 100 | AG67: 0 | AH67: =IF(G67=1,M67*0.15+O67*0.15+Q67*0.2+S67*0.1+AA67*0.1+AG67*0.1+AE67*0.2,IF(G67=2,M67*0.15+O67*0.15+Q67*0.2+S67*0.1+AA67*0.1+W67*0.1+AC67*0.2)) -> 73.05 | AI67: =IF(AH67>=90,"优秀",IF(AH67>=80,"良好",IF(AH67>=60,"及格","不及格"))) -> 及格
A68: 22 | B68: 22013 | C68: 主校区3班 | D68: G110106200703230028 | E68: 1 | F68: 杜雨桐 | G68: 2 | H68: 2007-03-23 | J68: 168 | K68: 73.7 | L68: 26.11252834 | M68: 60 | N68: 2809 | O68: 90 | P68: 9.3 | Q68: 74 | R68: 12.9 | S68: 74 | V68: 30 | W68: 68 | Z68: 160 | AA68: 70 | AB68: 254 | AC68: 74 | AE68: 100 | AG68: 0 | AH68: 73.3 | AI68: 及格
A69: 22 | B69: 22013 | C69: 主校区3班 | D69: G510132200703120045 | E69: 1 | F69: 国旭飞 | G69: 2 | H69: 2007-03-12 | J69: 158 | K69: 42.2 | L69: 16.90434225 | M69: 100 | N69: 3099 | O69: 100 | P69: 9.4 | Q69: 74 | R69: 10.3 | S69: 70 | V69: 50 | W69: 95 | Z69: 175 | AA69: 80 | AB69: 228 | AC69: 85 | AE69: 100 | AG69: 0 | AH69: 86.3 | AI69: 良好
A70: 22 | B70: 22013 | C70: 主校区3班 | D70: G110111200703027020 | E70: 1 | F70: 黄久芮 | G70: 2 | H70: 2007-03-02 | J70: 159.8 | K70: 46.2 | L70: 18.09207692 | M70: 100 | N70: 2477 | O70: 78 | P70: 9.8 | Q70: 70 | R70: 7.5 | S70: 66 | V70: 35 | W70: 74 | Z70: 160 | AA70: 70 | AB70: 251 | AC70: 74 | AE70: 100 | AG70: 0 | AH70: 76.5 | AI70: 及格
A71: 22 | B71: 22013 | C71: 主校区3班 | D71: G110111200611237020 | E71: 1 | F71: 蒋家彤 | G71: 2 | H71: 2006-11-23 | J71: 173.5 | K71: 58.9 | L71: 19.56664369 | M71: 100 | N71: 1707 | O71: 64 | P71: 9.5 | Q71: 72 | R71: 12 | S71: 74 | V71: 30 | W71: 68 | Z71: 180 | AA71: 80 | AB71: 224 | AC71: 90 | AE71: 100 | AG71: 0 | AH71: 79.2 | AI71: 及格
A72: 22 | B72: 22013 | C72: 主校区3班 | D72: G110111200708167022 | E72: 1 | F72: 刘竞帆 | G72: 2 | H72: 2007-08-16 | J72: 154 | K72: 40.4 | L72: 17.03491314 | M72: 100 | N72: 2768 | O72: 85 | P72: 10.4 | Q72: 64 | R72: 6.3 | S72: 64 | V72: 31 | W72: 70 | Z72: 145 | AA72: 60 | AB72: 280 | AC72: 64 | AE72: 100 | AG72: 0 | AH72: 72.75 | AI72: 及格
A73: 22 | B73: 22013 | C73: 主校区3班 | D73: G110111200611190349 | E73: 1 | F73: 史旌丰 | G73: 2 | H73: 2006-11-19 | J73: 157.8 | K73: 73.2 | L73: 29.39659867 | M73: 60 | N73: 2690 | O73: 85 | P73: 10.1 | Q73: 66 | R73: 13.1 | S73: 74 | V73: 35 | W73: 74 | Z73: 165 | AA73: 74 | AB73: 261 | AC73: 70 | AE73: 100 | AG73: 0 | AH73: 71.15 | AI73: 及格
A74: 22 | B74: 22013 | C74: 主校区3班 | D74: G110111200707180348 | E74: 1 | F74: 王紫彤 | G74: 2 | H74: 2007-07-18 | J74: 161.5 | K74: 68.3 | L74: 26.18639113 | M74: 60 | N74: 2368 | O74: 76 | P74: 10.9 | Q74: 50 | R74: 11 | S74: 72 | V74: 31 | W74: 70 | Z74: 135 | AA74: 40 | AB74: 261 | AC74: 70 | AE74: 100 | AG74: 0 | AH74: 62.6 | AI74: 及格
A75: 22 | B75: 22013 | C75: 主校区3班 | D75: G11011120070108702X | E75: 1 | F75: 张梦琪 | G75: 2 | H75: 2007-01-08 | J75: 162 | K75: 43.9 | L75: 16.72763298 | M75: 100 | N75: 2636 | O75: 80 | P75: 9.1 | Q75: 76 | R75: -2.2 | S75: 0 | V75: 38 | W75: 76 | Z75: 170 | AA75: 76 | AB75: 232 | AC75: 85 | AE75: 100 | AG75: 0 | AH75: 74.4 | AI75: 及格
A76: 22 | B76: 22013 | C76: 主校区3班 | D76: G110111200701200328 | E76: 1 | F76: 孙文竹 | G76: 2 | H76: 2007-01-20 | J76: 155 | K76: 41.9 | L76: 17.44016649 | M76: 100 | N76: 2611 | O76: 80 | P76: 11.2 | Q76: 40 | R76: 14.6 | S76: 78 | V76: 20 | W76: 50 | Z76: 135 | AA76: 40 | AB76: 271 | AC76: 66 | AE76: 100 | AG76: 0 | AH76: 65 | AI76: 及格
A77: 22 | B77: 22013 | C77: 主校区3班 | D77: G110102200706201120 | E77: 1 | F77: 朱皓琦 | G77: 2 | H77: 2007-06-20 | J77: 164.8 | K77: 46.7 | L77: 17.19501131 | M77: 100 | N77: 2829 | O77: 90 | P77: 9.2 | Q77: 76 | R77: 11 | S77: 72 | V77: 40 | W77: 78 | Z77: 175 | AA77: 80 | AB77: 247 | AC77: 76 | AE77: 100 | AG77: 0 | AH77: 81.9 | AI77: 良好
A78: 22 | B78: 22014 | C78: 主校区4班 | D78: G350305200702242050 | E78: 1 | F78: 吴嘉锋 | G78: 1 | H78: 2007-02-24 | J78: 160 | K78: 55.9 | L78: =K78/(J78*J78/10000) -> 21.8359375 | M78: =IF(G78=1,IF(L78<=15.6,80,IF(L78<=22.5,100,IF(L78<=25.2,80,60))),IF(G78=2,IF(L78<=15.2,80,IF(L78<=22.2,100,IF(L78<=24.8,80,60))))) -> 100 | N78: 2375 | O78: =IF(G78=1,IF(N78>=3940,100,IF(N78>=3820,95,IF(N78>=3700,90,IF(N78>=3450,85,IF(N78>=3200,80,IF(N78>=3080,78,IF(N78>=2960,76,IF(N78>=2840,74,IF(N78>=2720,72,IF(N78>=2600,70,IF(N78>=2480,68,IF(N78>=2360,66,IF(N78>=2240,64,IF(N78>=2120,62,IF(N78>=2000,60,IF(N78>=1890,50,IF(N78>=1780,40,IF(N78>=1670,30,IF(N78>=1560,20,IF(N78>=1450,10,0)))))))))))))))))))),IF(G78=2,IF(N78>2900,100,IF(N78>2850,95,IF(N78>2800,90,IF(N78>2650,85,IF(N78>2500,80,IF(N78>2400,78,IF(N78>2300,76,IF(N78>2200,74,IF(N78>2100,72,IF(N78>2000,70,IF(N78>1900,68,IF(N78>1800,66,IF(N78>1700,64,IF(N78>1600,62,IF(N78>1500,60,IF(N78>1460,50,IF(N78>1420,40,IF(N78>1380,30,IF(N78>1340,20,IF(N78>1300,10,0)))))))))))))))))))))) -> 66 | P78: 7.87 | Q78: =IF(G78=1,IF(P78<=7.5,100,IF(P78<=7.6,95,IF(P78<=7.7,90,IF(P78<=7.8,85,IF(P78<=7.9,80,IF(P78<=8.1,78,IF(P78<=8.3,76,IF(P78<=8.5,74,IF(P78<=8.7,72,IF(P78<=8.9,70,IF(P78<=9.1,68,IF(P78<=9.3,66,IF(P78<=9.5,64,IF(P78<=9.7,62,IF(P78<=9.9,60,IF(P78<=10.1,50,IF(P78<=10.3,40,IF(P78<=10.5,30,IF(P78<=10.7,20,IF(P78<=10.9,10,0)))))))))))))))))))),IF(G78=2,IF(P78<=8,100,IF(P78<=8.1,95,IF(P78<=8.2,90,IF(P78<=8.5,85,IF(P78<=8.8,80,IF(P78<=9,78,IF(P78<=9.2,76,IF(P78<=9.4,74,IF(P78<=9.6,72,IF(P78<=9.8,70,IF(P78<=10,68,IF(P78<=10.2,66,IF(P78<=10.4,64,IF(P78<=10.6,62,IF(P78<=10.8,60,IF(P78<=11,50,IF(P78<=11.2,40,IF(P78<=11.4,30,IF(P78<=11.6,20,IF(P78<=11.8,10,0)))))))))))))))))))))) -> 80 | R78: 7.8 | S78: =IF(G78=1,IF(R78>=19.6,100,IF(R78>=17.7,95,IF(R78>=15.8,90,IF(R78>=13.7,85,IF(R78>=11.6,80,IF(R78>=10.3,78,IF(R78>=9,76,IF(R78>=7.7,74,IF(R78>=6.4,72,IF(R78>=5.1,70,IF(R78>=3.8,68,IF(R78>=2.5,66,IF(R78>=1.2,64,IF(R78>=-0.1,62,IF(R78>=-1.4,60,IF(R78>=-2.6,50,IF(R78>=-3.8,40,IF(R78>=-5,30,IF(R78>=-6.2,20,IF(R78>=-7.4,10,0)))))))))))))))))))),IF(G78=2,IF(R78>=22.7,100,IF(R78>=21,95,IF(R78>=19.3,90,IF(R78>=17.6,85,IF(R78>=15.9,80,IF(R78>=14.6,78,IF(R78>=13.3,76,IF(R78>=12,74,IF(R78>=10.7,72,IF(R78>=9.4,70,IF(R78>=8.1,68,IF(R78>=6.8,66,IF(R78>=5.5,64,IF(R78>=4.2,62,IF(R78>=2.9,60,IF(R78>=2.1,50,IF(R78>=1.3,40,IF(R78>=0.5,30,IF(R78>=-0.3,20,IF(R78>=-1.1,10,0)))))))))))))))))))))) -> 74 | Z78: 175 | AA78: =IF(G78=1,IF(Z78>=240,100,IF(Z78>=233,95,IF(Z78>=226,90,IF(Z78>=218,85,IF(Z78>=210,80,IF(Z78>=206,78,IF(Z78>=202,76,IF(Z78>=198,74,IF(Z78>=194,72,IF(Z78>=190,70,IF(Z78>=186,68,IF(Z78>=182,66,IF(Z78>=178,64,IF(Z78>=174,62,IF(Z78>=170,60,IF(Z78>=165,50,IF(Z78>=160,40,IF(Z78>=155,30,IF(Z78>=150,20,IF(Z78>=145,10,0)))))))))))))))))))),IF(G78=2,IF(Z78>=200,100,IF(Z78>=194,95,IF(Z78>=188,90,IF(Z78>=181,85,IF(Z78>=174,80,IF(Z78>=171,78,IF(Z78>=168,76,IF(Z78>=165,74,IF(Z78>=162,72,IF(Z78>=159,70,IF(Z78>=156,68,IF(Z78>=153,66,IF(Z78>=150,64,IF(Z78>=147,62,IF(Z78>=144,60,IF(Z78>=139,50,IF(Z78>=134,40,IF(Z78>=129,30,IF(Z78>=124,20,IF(Z78>=119,10,0)))))))))))))))))))))) -> 62 | AD78: 298 | AE78: 62 | AF78: 1 | AG78: 20 | AH78: =IF(G78=1,M78*0.15+O78*0.15+Q78*0.2+S78*0.1+AA78*0.1+AG78*0.1+AE78*0.2,IF(G78=2,M78*0.15+O78*0.15+Q78*0.2+S78*0.1+AA78*0.1+W78*0.1+AC78*0.2)) -> 68.9 | AI78: =IF(AH78>=90,"优秀",IF(AH78>=80,"良好",IF(AH78>=60,"及格","不及格"))) -> 及格
A79: 22 | B79: 22014 | C79: 主校区4班 | D79: G110111200706017012 | E79: 1 | F79: 常梓铭 | G79: 1 | H79: 2007-06-01 | J79: 181 | K79: 102.9 | L79: 31.40929764 | M79: 60 | N79: 3014 | O79: 76 | P79: 8.45 | Q79: 74 | R79: 3.1 | S79: 66 | Z79: 170 | AA79: 60 | AD79: 355 | AE79: 30 | AF79: 2 | AG79: 30 | AH79: 56.8 | AI79: 不及格
A80: 22 | B80: 22014 | C80: 主校区4班 | D80: G110105200708035452 | E80: 1 | F80: 高轶轩 | G80: 1 | H80: 2007-08-03 | J80: 155.5 | K80: 69.2 | L80: 28.61839725 | M80: 60 | N80: 2080 | O80: 60 | P80: 8.79 | Q80: 70 | R80: 6.7 | S80: 72 | Z80: 150 | AA80: 20 | AD80: 312 | AE80: 50 | AF80: 1 | AG80: 20 | AH80: 53.2 | AI80: 不及格
A81: 22 | B81: 22014 | C81: 主校区4班 | D81: G110111200707207010 | E81: 11 | F81: 黄梦博 | G81: 1 | H81: 2007-07-20 | J81: 164.2 | K81: 75.4 | L81: 27.96565788 | M81: 60 | N81: 3001 | O81: 76 | P81: 10 | Q81: 50 | R81: 4.7 | S81: 68 | Z81: 170 | AA81: 60 | AD81: 363 | AE81: 30 | AF81: 1 | AG81: 20 | AH81: 51.2 | AI81: 不及格
A82: 22 | B82: 22014 | C82: 主校区4班 | D82: G110111200705237013 | E82: 1 | F82: 李泠帅 | G82: 1 | H82: 2007-05-23 | J82: 161.5 | K82: 44.6 | L82: 17.09975175 | M82: 100 | N82: 3001 | O82: 76 | P82: 6.99 | Q82: 100 | R82: 9.5 | S82: 76 | Z82: 200 | AA82: 74 | AD82: 247 | AE82: 85 | AF82: 11 | AG82: 85 | AH82: 86.9 | AI82: 良好
A83: 22 | B83: 22014 | C83: 主校区4班 | D83: G110111200609102610 | E83: 1 | F83: 孙有汶 | G83: 1 | H83: 2006-09-10 | J83: 164.5 | K83: 62.6 | L83: 23.13356307 | M83: 80 | N83: 4304 | O83: 100 | P83: 6.55 | Q83: 100 | R83: 1.7 | S83: 64 | Z83: 218 | AA83: 85 | AD83: 227 | AE83: 100 | AF83: 0 | AG83: 0 | AH83: 81.9 | AI83: 良好
A84: 22 | B84: 22014 | C84: 主校区4班 | D84: G110111200701255919 | E84: 1 | F84: 王一诺 | G84: 1 | H84: 2007-01-25 | J84: 176 | K84: 83.5 | L84: 26.95635331 | M84: 60 | N84: 3840 | O84: 95 | P84: 6.98 | Q84: 100 | R84: 2.7 | S84: 66 | Z84: 225 | AA84: 85 | AD84: 298 | AE84: 62 | AF84: 1 | AG84: 20 | AH84: 72.75 | AI84: 及格
A85: 22 | B85: 22014 | C85: 主校区4班 | D85: G110111200706187038 | E85: 11 | F85: 杨铄 | G85: 1 | H85: 2007-06-18 | J85: 165.5 | K85: 58.3 | L85: 21.28494629 | M85: 100 | N85: 2574 | O85: 68 | Q85: 100 | S85: 62 | AA85: 0 | AG85: 0 | AH85: 51.4 | AI85: 不及格
A86: 22 | B86: 22014 | C86: 主校区4班 | D86: G110111200708157035 | E86: 1 | F86: 张俊飞 | G86: 1 | H86: 2007-08-15 | J86: 171 | K86: 69.2 | L86: 23.66540132 | M86: 80 | N86: 2783 | O86: 72 | P86: 7.85 | Q86: 80 | R86: 9.6 | S86: 76 | Z86: 190 | AA86: 70 | AD86: 310 | AE86: 50 | AF86: 0 | AG86: 0 | AH86: 63.4 | AI86: 及格
A87: 22 | B87: 22014 | C87: 主校区4班 | D87: G11011120070729701X | E87: 1 | F87: 周北上 | G87: 1 | H87: 2007-07-29 | J87: 173 | K87: 77.6 | L87: 25.92802967 | M87: 60 | N87: 3078 | O87: 76 | P87: 7.63 | Q87: 90 | R87: 13.5 | S87: 80 | Z87: 180 | AA87: 64 | AD87: 260 | AE87: 78 | AF87: 1 | AG87: 20 | AH87: 70.4 | AI87: 及格
A88: 22 | B88: 22014 | C88: 主校区4班 | D88: G430224200609130197 | E88: 1 | F88: 周胡涛 | G88: 1 | H88: 2006-09-13 | J88: 172 | K88: 66 | L88: 22.30935641 | M88: 100 | N88: 3000 | O88: 76 | P88: 7.78 | Q88: 85 | R88: 7.2 | S88: 72 | Z88: 205 | AA88: 76 | AD88: 241 | AE88: 85 | AF88: 0 | AG88: 0 | AH88: 75.2 | AI88: 及格
A89: 22 | B89: 22014 | C89: 主校区4班 | D89: G110111200707037058 | E89: 1 | F89: 周竞 | G89: 1 | H89: 2007-07-03 | J89: 181 | K89: 103.8 | L89: 31.68401453 | M89: 60 | N89: 3762 | O89: 90 | P89: 9.3 | Q89: 66 | R89: 2.9 | S89: 66 | Z89: 180 | AA89: 64 | AD89: 3.45 | AE89: 100 | AF89: 1 | AG89: 20 | AH89: 70.7 | AI89: 及格
A90: 22 | B90: 22014 | C90: 主校区4班 | D90: G110111200609297016 | E90: 1 | F90: 韦祎 | G90: 1 | H90: 2006-09-29 | J90: 183.2 | K90: 70.2 | L90: 20.91636315 | M90: 100 | N90: 4546 | O90: 100 | P90: 7.25 | Q90: 100 | R90: 6.9 | S90: 72 | Z90: 240 | AA90: 100 | AD90: 2'59" | AE90: 0 | AF90: 8 | AG90: 72 | AH90: 74.4 | AI90: 及格
A91: 22 | B91: 22014 | C91: 主校区4班 | D91: G11011520070428522X | E91: 1 | F91: 宋欣怡 | G91: 2 | H91: 2007-04-28 | J91: 156 | K91: 58.6 | L91: 24.07955293 | M91: 80 | N91: 2619 | O91: 80 | P91: 8.3 | Q91: 85 | R91: 15.5 | S91: 78 | V91: 33 | W91: =IF(V91>=51,100,IF(V91>=49,95,IF(V91>=47,90,IF(V91>=44,85,IF(V91>=41,80,IF(V91>=39,78,IF(V91>=37,76,IF(V91>=35,74,IF(V91>=33,72,IF(V91>=31,70,IF(V91>=29,68,IF(V91>=27,66,IF(V91>=25,64,IF(V91>=23,62,IF(V91>=21,60,IF(V91>=19,50,IF(V91>=17,40,IF(V91>=15,30,IF(V91>=13,20,IF(V91>=11,10,0)))))))))))))))))))) -> 72 | Z91: 150 | AA91: 64 | AB91: 239 | AC91: =IF(AB91<=210,100,IF(AB91<=217,95,IF(AB91<=224,90,IF(AB91<=232,85,IF(AB91<=240,80,IF(AB91<=245,78,IF(AB91<=250,76,IF(AB91<=255,74,IF(AB91<=260,72,IF(AB91<=265,70,IF(AB91<=270,68,IF(AB91<=275,66,IF(AB91<=280,64,IF(AB91<=285,62,IF(AB91<=290,60,IF(AB91<=300,50,IF(AB91<=310,40,IF(AB91<=320,30,IF(AB91<=330,20,IF(AB91<=340,10,0)))))))))))))))))))) -> 80 | AH91: 78.4 | AI91: 及格
A92: 22 | B92: 22014 | C92: 主校区4班 | D92: G110111200705090349 | E92: 1 | F92: 魏紫羽 | G92: 2 | H92: 2007-05-09 | J92: 170.5 | K92: 115 | L92: 39.55934331 | M92: 60 | N92: 2983 | O92: 100 | P92: 10.79 | Q92: 60 | R92: 3.7 | S92: 60 | V92: 28 | W92: 66 | Z92: 130 | AA92: 30 | AH92: 51.6 | AI92: 不及格
A93: 22 | B93: 22014 | C93: 主校区4班 | D93: G110111200703230328 | E93: 1 | F93: 侯婧伊 | G93: 2 | H93: 2007-03-23 | J93: 164.3 | K93: 51.7 | L93: 19.15205659 | M93: 100 | N93: 2245 | O93: 74 | P93: 8.1 | Q93: 95 | R93: 16.3 | S93: 80 | V93: 40 | W93: 78 | Z93: 180 | AA93: 80 | AB93: 219 | AC93: =IF(AB93<=210,100,IF(AB93<=217,95,IF(AB93<=224,90,IF(AB93<=232,85,IF(AB93<=240,80,IF(AB93<=245,78,IF(AB93<=250,76,IF(AB93<=255,74,IF(AB93<=260,72,IF(AB93<=265,70,IF(AB93<=270,68,IF(AB93<=275,66,IF(AB93<=280,64,IF(AB93<=285,62,IF(AB93<=290,60,IF(AB93<=300,50,IF(AB93<=310,40,IF(AB93<=320,30,IF(AB93<=330,20,IF(AB93<=340,10,0)))))))))))))))))))) -> 90 | AH93: 86.9 | AI93: 良好
A94: 22 | B94: 22014 | C94: 主校区4班 | D94: G110111200610267025 | E94: 1 | F94: 黄钰祺 | G94: 2 | H94: 2006-10-26 | J94: 160.5 | K94: 64.5 | L94: 25.03857688 | M94: 60 | N94: 3731 | O94: 100 | P94: 7.8 | Q94: 100 | R94: 3.4 | S94: 60 | V94: 50 | W94: 95 | Z94: 170 | AA94: 76 | AB94: 214 | AC94: 95 | AH94: 86.1 | AI94: 良好
A95: 22 | B95: 22014 | C95: 主校区4班 | D95: G110111200707057024 | E95: 1 | F95: 井若涵 | G95: 2 | H95: 2007-07-05 | J95: 157.2 | K95: 50 | L95: 20.23321614 | M95: 100 | N95: 2114 | O95: 72 | P95: 8.3 | Q95: 85 | R95: 12.6 | S95: 74 | V95: 50 | W95: 95 | Z95: 180 | AA95: 80 | AB95: 185 | AC95: 100 | AH95: 87.7 | AI95: 良好
A96: 22 | B96: 22014 | C96: 主校区4班 | D96: G11011120060919704X | E96: 1 | F96: 任欣妍 | G96: 2 | H96: 2006-09-19 | J96: 153.5 | K96: 63.8 | L96: 27.07721037 | M96: 60 | N96: 3109 | O96: 100 | P96: 9.7 | Q96: 70 | R96: 11.2 | S96: 72 | V96: 30 | W96: 68 | Z96: 160 | AA96: 70 | AB96: 349 | AC96: 0 | AH96: 59 | AI96: 不及格
A97: 22 | B97: 22014 | C97: 主校区4班 | D97: G110111200704260326 | E97: 11 | F97: 史瑞阳 | G97: 2 | H97: 2007-04-26 | J97: 162 | K97: 61.4 | L97: 23.39582381 | M97: 80 | N97: 3393 | O97: 100 | P97: 10.77 | Q97: 60 | R97: 7.1 | S97: 66 | V97: 30 | W97: 68 | Z97: 170 | AA97: 76 | AB97: 275 | AC97: 66 | AH97: 73.2 | AI97: 及格
A98: 22 | B98: 22014 | C98: 主校区4班 | D98: G110111200610107021 | E98: 3 | F98: 宋子硕 | G98: 2 | H98: 2006-10-10 | J98: 165 | K98: 38.2 | L98: 14.0312213 | M98: 80 | N98: 2241 | O98: 74 | P98: 8.4 | Q98: 85 | R98: 3.9 | S98: 60 | V98: 40 | W98: 78 | Z98: 160 | AA98: 70 | AB98: 235 | AC98: 80 | AH98: 76.9 | AI98: 及格
A99: 22 | B99: 22014 | C99: 主校区4班 | D99: G110111200611082620 | E99: 1 | F99: 王嘉绮 | G99: 2 | H99: 2006-11-08 | J99: 163.5 | K99: 45.1 | L99: 16.87100787 | M99: 100 | N99: 1747 | O99: 64 | P99: 10.68 | Q99: 60 | R99: 6 | S99: 64 | V99: 40 | W99: 78 | Z99: 155 | AA99: 66 | AB99: 241 | AC99: 78 | AH99: 73 | AI99: 及格
A100: 22 | B100: 22014 | C100: 主校区4班 | D100: G110111200703017068 | E100: 1 | F100: 谢雯怡 | G100: 2 | H100: 2007-03-01 | J100: 163.5 | K100: 44.2 | L100: 16.53433587 | M100: 100 | N100: 2674 | O100: 85 | P100: 9.18 | Q100: 76 | R100: 2.2 | S100: 50 | V100: 30 | W100: 68 | Z100: 180 | AA100: 80 | AB100: 253 | AC100: 74 | AH100: 77.55 | AI100: 及格
A101: 22 | B101: 22014 | C101: 主校区4班 | D101: G110111200704192626 | E101: 1 | F101: 翟晏彬 | G101: 2 | H101: 2007-04-19 | J101: 165.2 | K101: 44 | L101: 16.12250761 | M101: 100 | N101: 1791 | O101: 64 | P101: 10.3 | Q101: 64 | R101: 16.7 | S101: 80 | V101: 46 | W101: 85 | Z101: 150 | AA101: 64 | AB101: 185 | AC101: 100 | AH101: 80.3 | AI101: 良好
A102: 22 | B102: 22014 | C102: 主校区4班 | D102: G110111200707037023 | E102: 1 | F102: 张奇思 | G102: 2 | H102: 2007-07-03 | J102: 167.5 | K102: 58 | L102: 20.67275562 | M102: 100 | N102: 2741 | O102: 85 | P102: 9.1 | Q102: 76 | R102: 19.7 | S102: 90 | V102: 46 | W102: 85 | Z102: 180 | AA102: 80 | AB102: 214 | AC102: 95 | AH102: 87.45 | AI102: 良好

Sheet 分秒转换
A1: 分钟转秒数 | G1: 秒数转分钟
A3: 原始数据 | B3: 公式1 | C3: 公式2 | D3: 新数据 | G3: 原始数据 | H3: 公式1 | I3: 公式2 | J3: 新数据
A4: 4.58 | B4: =LEFT(A4,1) -> 4 | C4: =MID(A4,3,2) -> 58 | D4: =B4*60+C4 -> 298 | G4: 250 | H4: =QUOTIENT(G4,60) -> 4 | I4: =MOD(G4,60) -> 10 | J4: =H4&"'"&I4&"""" -> 4'10"
A5: 5.55 | B5: =LEFT(A5,1) -> 5 | C5: =MID(A5,3,2) -> 55 | D5: =B5*60+C5 -> 355 | G5: 284 | H5: =QUOTIENT(G5,60) -> 4 | I5: =MOD(G5,60) -> 44 | J5: =H5&"'"&I5&"""" -> 4'44"
A6: 5.12 | B6: 5 | C6: 12 | D6: 312 | G6: 214 | H6: 3 | I6: 34 | J6: 3'34"
A7: 6.03 | B7: 6 | C7: 03 | D7: 363 | G7: 256 | H7: 4 | I7: 16 | J7: 4'16"
A8: 4.07 | B8: 4 | C8: 07 | D8: 247 | G8: 320 | H8: 5 | I8: 20 | J8: 5'20"
A9: 3.47 | B9: 3 | C9: 47 | D9: 227 | G9: 300 | H9: 5 | I9: 0 | J9: 5'0"
A10: 4.58 | B10: 4 | C10: 58 | D10: 298 | G10: 320 | H10: 5 | I10: 20 | J10: 5'20"
G11: 316 | H11: 5 | I11: 16 | J11: 5'16"
A12: 5.1 | B12: 5 | C12: 1 | D12: 301 | G12: 291 | H12: 4 | I12: 51 | J12: 4'51"
A13: 4.2 | B13: 4 | C13: 2 | D13: 242 | G13: 314 | H13: 5 | I13: 14 | J13: 5'14"
A14: 4.1 | B14: 4 | C14: 1 | D14: 241 | G14: 240 | H14: 4 | I14: 0 | J14: 4'0"
A15: 6.2 | B15: 6 | C15: 2 | D15: 362 | G15: 314 | H15: 5 | I15: 14 | J15: 5'14"
A16: 4.19 | B16: 4 | C16: 19 | D16: 259 | G16: 320 | H16: 5 | I16: 20 | J16: 5'20"
G17: 291 | H17: 4 | I17: 51 | J17: 4'51"
G18: 318 | H18: 5 | I18: 18 | J18: 5'18"
H19: 0 | I19: 0 | J19: 0'0"
H20: 0 | I20: 0 | J20: 0'0"
H21: 0 | I21: 0 | J21: 0'0"
H22: 0 | I22: 0 | J22: 0'0"
H23: 0 | I23: 0 | J23: 0'0"
H24: 0 | I24: 0 | J24: 0'0"
H25: 0 | I25: 0 | J25: 0'0"
H26: 0 | I26: 0 | J26: 0'0"
H27: 0 | I27: 0 | J27: 0'0"
H28: 0 | I28: 0 | J28: 0'0"
H29: 0 | I29: 0 | J29: 0'0"
H30: 0 | I30: 0 | J30: 0'0"
A31: 4'03" | B31: 4 | C31: 03 | D31: 243 | H31: 0 | I31: 0 | J31: 0'0"
A32: 3'59" | B32: 3 | C32: 59 | D32: 239 | G32: 320 | H32: 5 | I32: 20 | J32: 5'20"
G33: 308 | H33: 5 | I33: 8 | J33: 5'8"
A34: 4'23" | B34: 4 | C34: 23 | D34: 263 | G34: 320 | H34: 5 | I34: 20 | J34: 5'20"
A35: 4'06" | B35: 4 | C35: 06 | D35: 246 | G35: 272 | H35: 4 | I35: 32 | J35: 4'32"
A36: 4'30" | B36: 4 | C36: 30 | D36: 270 | G36: 331 | H36: 5 | I36: 31 | J36: 5'31"
A37: 3'47" | B37: 3 | C37: 47 | D37: 227 | G37: 307 | H37: 5 | I37: 7 | J37: 5'7"
A38: 3'54" | B38: 3 | C38: 54 | D38: 234 | G38: 288 | H38: 4 | I38: 48 | J38: 4'48"
A39: 4'40" | B39: 4 | C39: 40 | D39: 280 | G39: 316 | H39: 5 | I39: 16 | J39: 5'16"
A40: 3'33" | B40: 3 | C40: 33 | D40: 213 | G40: 309 | H40: 5 | I40: 9 | J40: 5'9"
A41: 3'43" | B41: 3 | C41: 43 | D41: 223 | G41: 268 | H41: 4 | I41: 28 | J41: 4'28"
A42: 4'50" | B42: 4 | C42: 50 | D42: 290 | G42: 320 | H42: 5 | I42: 20 | J42: 5'20"
A43: 4'24" | B43: 4 | C43: 24 | D43: 264 | G43: 289 | H43: 4 | I43: 49 | J43: 4'49"
A44: 3'57" | B44: 3 | C44: 57 | D44: 237 | G44: 301 | H44: 5 | I44: 1 | J44: 5'1"
A45: 4'00" | B45: 4 | C45: 00 | D45: 240 | G45: 309 | H45: 5 | I45: 9 | J45: 5'9"
A46: 4'00" | B46: 4 | C46: 00 | D46: 240 | H46: 0 | I46: 0 | J46: 0'0"
A47: 4'16" | B47: 4 | C47: 16 | D47: 256 | H47: 0 | I47: 0 | J47: 0'0"
A48: 4'24" | B48: 4 | C48: 24 | D48: 264 | H48: 0 | I48: 0 | J48: 0'0"
A49: 3'55" | B49: 3 | C49: 55 | D49: 235 | H49: 0 | I49: 0 | J49: 0'0"
A50: 3'50" | B50: 3 | C50: 50 | D50: 230 | H50: 0 | I50: 0 | J50: 0'0"
A51: 3'53" | B51: 3 | C51: 53 | D51: 233 | H51: 0 | I51: 0 | J51: 0'0"
A52: 3'27" | B52: 3 | C52: 27 | D52: 207 | H52: 0 | I52: 0 | J52: 0'0"
A53: 4'01" | B53: 4 | C53: 01 | D53: 241 | H53: 0 | I53: 0 | J53: 0'0"
A54: 3'57" | B54: 3 | C54: 57 | D54: 237 | H54: 0 | I54: 0 | J54: 0'0"
A55: 5'54" | B55: 5 | C55: 54 | D55: 354 | H55: 0 | I55: 0 | J55: 0'0"
A56: 4'05" | B56: 4 | C56: 05 | D56: 245 | H56: 0 | I56: 0 | J56: 0'0"
A57: 4'19" | B57: 4 | C57: 19 | D57: 259 | H57: 0 | I57: 0 | J57: 0'0"
A58: 5'15" | B58: 5 | C58: 15 | D58: 315 | H58: 0 | I58: 0 | J58: 0'0"
A59: 4'07" | B59: 4 | C59: 07 | D59: 247 | H59: 0 | I59: 0 | J59: 0'0"
A60: 4'49" | B60: 4 | C60: 49 | D60: 289 | G60: 254 | H60: 4 | I60: 14 | J60: 4'14"
A61: 5'42" | B61: 5 | C61: 42 | D61: 342 | G61: 271 | H61: 4 | I61: 31 | J61: 4'31"
A62: 4'13" | B62: 4 | C62: 13 | D62: 253 | G62: 276 | H62: 4 | I62: 36 | J62: 4'36"
A63: 4'20" | B63: 4 | C63: 20 | D63: 260 | G63: 310 | H63: 5 | I63: 10 | J63: 5'10"
A64: 4'21" | B64: 4 | C64: 21 | D64: 261 | G64: 251 | H64: 4 | I64: 11 | J64: 4'11"
A65: 4'48" | B65: 4 | C65: 48 | D65: 288 | G65: 302 | H65: 5 | I65: 2 | J65: 5'2"
A66: 4'40" | B66: 4 | C66: 40 | D66: 280 | G66: 320 | H66: 5 | I66: 20 | J66: 5'20"
G67: 275 | H67: 4 | I67: 35 | J67: 4'35"
G68: 283 | H68: 4 | I68: 43 | J68: 4'43"
B69: =LEFT(A69,1) ->  | C69: =MID(A69,3,2) ->  | D69: =B69*60+C69 ->  | G69: 286 | H69: =QUOTIENT(G69,60) -> 4 | I69: =MOD(G69,60) -> 46 | J69: =H69&"'"&I69&"""" -> 4'46"
G70: 286 | H70: 4 | I70: 46 | J70: 4'46"
G71: 319 | H71: 5 | I71: 19 | J71: 5'19"
H72: 0 | I72: 0 | J72: 0'0"
H73: 0 | I73: 0 | J73: 0'0"
H74: 0 | I74: 0 | J74: 0'0"
H75: 0 | I75: 0 | J75: 0'0"
H76: 0 | I76: 0 | J76: 0'0"
H77: 0 | I77: 0 | J77: 0'0"
H78: 0 | I78: 0 | J78: 0'0"
H79: 0 | I79: 0 | J79: 0'0"
H80: 0 | I80: 0 | J80: 0'0"
H81: 0 | I81: 0 | J81: 0'0"
H82: 0 | I82: 0 | J82: 0'0"
H83: 0 | I83: 0 | J83: 0'0"
H84: 0 | I84: 0 | J84: 0'0"
H85: 0 | I85: 0 | J85: 0'0"
A86: 4'28" | B86: 4 | C86: 28 | D86: 268 | G86: 268 | H86: 4 | I86: 28 | J86: 4'28"
A87: 4'45" | B87: 4 | C87: 45 | D87: 285 | G87: 285 | H87: 4 | I87: 45 | J87: 4'45"
G88: 319 | H88: 5 | I88: 19 | J88: 5'19"
A89: 5'00" | B89: 5 | C89: 00 | D89: 300 | G89: 300 | H89: 5 | I89: 0 | J89: 5'0"
A90: 5'12" | B90: 5 | C90: 12 | D90: 312 | G90: 312 | H90: 5 | I90: 12 | J90: 5'12"
A91: 4'00" | B91: 4 | C91: 00 | D91: 240 | G91: 240 | H91: 4 | I91: 0 | J91: 4'0"
A92: 4'00" | B92: 4 | C92: 00 | D92: 240 | G92: 240 | H92: 4 | I92: 0 | J92: 4'0"
A93: 4'10" | B93: 4 | C93: 10 | D93: 250 | G93: 250 | H93: 4 | I93: 10 | J93: 4'10"
A94: 4'20" | B94: 4 | C94: 20 | D94: 260 | G94: 260 | H94: 4 | I94: 20 | J94: 4'20"
A95: 4'25" | B95: 4 | C95: 25 | D95: 265 | G95: 265 | H95: 4 | I95: 25 | J95: 4'25"
A96: 4'12" | B96: 4 | C96: 12 | D96: 252 | G96: 252 | H96: 4 | I96: 12 | J96: 4'12"
A97: 4'26" | B97: 4 | C97: 26 | D97: 266 | G97: 266 | H97: 4 | I97: 26 | J97: 4'26"
G98: 319 | H98: 5 | I98: 19 | J98: 5'19"
A99: 4'35" | B99: 4 | C99: 35 | D99: 275 | G99: 275 | H99: 4 | I99: 35 | J99: 4'35"
H100: 0 | I100: 0 | J100: 0'0"
H101: 0 | I101: 0 | J101: 0'0"
H102: 0 | I102: 0 | J102: 0'0"
H103: 0 | I103: 0 | J103: 0'0"
H104: 0 | I104: 0 | J104: 0'0"
H105: 0 | I105: 0 | J105: 0'0"
H106: 0 | I106: 0 | J106: 0'0"
H107: 0 | I107: 0 | J107: 0'0"
H108: 0 | I108: 0 | J108: 0'0"
H109: 0 | I109: 0 | J109: 0'0"
H110: 0 | I110: 0 | J110: 0'0"
H111: 0 | I111: 0 | J111: 0'0"
H112: 0 | I112: 0 | J112: 0'0"
G113: 272 | H113: 4 | I113: 32 | J113: 4'32"
G114: 254 | H114: 4 | I114: 14 | J114: 4'14"
G115: 310 | H115: 5 | I115: 10 | J115: 5'10"
G116: 261 | H116: 4 | I116: 21 | J116: 4'21"
G117: 256 | H117: 4 | I117: 16 | J117: 4'16"
G118: 282 | H118: 4 | I118: 42 | J118: 4'42"
G119: 285 | H119: 4 | I119: 45 | J119: 4'45"
G120: 298 | H120: 4 | I120: 58 | J120: 4'58"
G121: 250 | H121: 4 | I121: 10 | J121: 4'10"
H122: 0 | I122: 0 | J122: 0'0"
H123: 0 | I123: 0 | J123: 0'0"
H124: 0 | I124: 0 | J124: 0'0"
H125: 0 | I125: 0 | J125: 0'0"
H126: 0 | I126: 0 | J126: 0'0"
H127: 0 | I127: 0 | J127: 0'0"
H128: 0 | I128: 0 | J128: 0'0"
H129: 0 | I129: 0 | J129: 0'0"
H130: 0 | I130: 0 | J130: 0'0"
H131: 0 | I131: 0 | J131: 0'0"
H132: 0 | I132: 0 | J132: 0'0"
B133: =LEFT(A133,1) ->  | C133: =MID(A133,3,2) ->  | D133: =B133*60+C133 ->  | H133: =QUOTIENT(G133,60) -> 0 | I133: =MOD(G133,60) -> 0 | J133: =H133&"'"&I133&"""" -> 0'0"
H134: 0 | I134: 0 | J134: 0'0"
H135: 0 | I135: 0 | J135: 0'0"
H136: 0 | I136: 0 | J136: 0'0"
H137: 0 | I137: 0 | J137: 0'0"
H138: 0 | I138: 0 | J138: 0'0"
H139: 0 | I139: 0 | J139: 0'0"
H140: 0 | I140: 0 | J140: 0'0"
H141: 0 | I141: 0 | J141: 0'0"
H142: 0 | I142: 0 | J142: 0'0"
A143: 4'23" | B143: 4 | C143: 23 | D143: 263 | G143: 263 | H143: 4 | I143: 23 | J143: 4'23"
A144: 5'45" | B144: 5 | C144: 45 | D144: 345 | G144: 305 | H144: 5 | I144: 5 | J144: 5'5"
A145: 4'16" | B145: 4 | C145: 16 | D145: 256 | G145: 256 | H145: 4 | I145: 16 | J145: 4'16"
A146: 4'51" | B146: 4 | C146: 51 | D146: 291 | G146: 291 | H146: 4 | I146: 51 | J146: 4'51"
A147: 6'00" | B147: 6 | C147: 00 | D147: 360 | G147: 305 | H147: 5 | I147: 5 | J147: 5'5"
A148: 4'15" | B148: 4 | C148: 15 | D148: 255 | G148: 255 | H148: 4 | I148: 15 | J148: 4'15"
A149: 4'35" | B149: 4 | C149: 35 | D149: 275 | G149: 275 | H149: 4 | I149: 35 | J149: 4'35"
A150: 3'53" | B150: 3 | C150: 53 | D150: 233 | G150: 233 | H150: 3 | I150: 53 | J150: 3'53"
A151: 4'40" | B151: 4 | C151: 40 | D151: 280 | G151: 280 | H151: 4 | I151: 40 | J151: 4'40"
A152: 4'15" | B152: 4 | C152: 15 | D152: 255 | G152: 255 | H152: 4 | I152: 15 | J152: 4'15"
A153: 4'58" | B153: 4 | C153: 58 | D153: 298 | G153: 298 | H153: 4 | I153: 58 | J153: 4'58"
A154: 4'00" | B154: 4 | C154: 00 | D154: 240 | G154: 240 | H154: 4 | I154: 0 | J154: 4'0"
A155: 5'07" | B155: 5 | C155: 07 | D155: 307 | G155: 305 | H155: 5 | I155: 5 | J155: 5'5"
H156: 0 | I156: 0 | J156: 0'0"
H157: 0 | I157: 0 | J157: 0'0"
H158: 0 | I158: 0 | J158: 0'0"
H159: 0 | I159: 0 | J159: 0'0"
H160: 0 | I160: 0 | J160: 0'0"
H161: 0 | I161: 0 | J161: 0'0"
H162: 0 | I162: 0 | J162: 0'0"
H163: 0 | I163: 0 | J163: 0'0"
H164: 0 | I164: 0 | J164: 0'0"
H165: 0 | I165: 0 | J165: 0'0"
H166: 0 | I166: 0 | J166: 0'0"
H167: 0 | I167: 0 | J167: 0'0"
H168: 0 | I168: 0 | J168: 0'0"
H169: 0 | I169: 0 | J169: 0'0"
H170: 0 | I170: 0 | J170: 0'0"
H171: 0 | I171: 0 | J171: 0'0"
H172: 0 | I172: 0 | J172: 0'0"
A173: 4'07" | B173: 4 | C173: 07 | D173: 247 | G173: 247 | H173: 4 | I173: 7 | J173: 4'7"
A174: 4'19" | B174: 4 | C174: 19 | D174: 259 | G174: 259 | H174: 4 | I174: 19 | J174: 4'19"
G175: 305 | H175: 5 | I175: 5 | J175: 5'5"
A176: 4'19" | B176: 4 | C176: 19 | D176: 259 | G176: 259 | H176: 4 | I176: 19 | J176: 4'19"
A177: 4'14" | B177: 4 | C177: 14 | D177: 254 | G177: 254 | H177: 4 | I177: 14 | J177: 4'14"
A178: 3'34" | B178: 3 | C178: 34 | D178: 214 | G178: 214 | H178: 3 | I178: 34 | J178: 3'34"
A179: 4'10" | B179: 4 | C179: 10 | D179: 250 | G179: 250 | H179: 4 | I179: 10 | J179: 4'10"
A180: 3'54" | B180: 3 | C180: 54 | D180: 234 | G180: 234 | H180: 3 | I180: 54 | J180: 3'54"
A181: 4'19" | B181: 4 | C181: 19 | D181: 259 | G181: 259 | H181: 4 | I181: 19 | J181: 4'19"
A182: 4'49" | B182: 4 | C182: 49 | D182: 289 | G182: 289 | H182: 4 | I182: 49 | J182: 4'49"
A183: 3'45" | B183: 3 | C183: 45 | D183: 225 | G183: 225 | H183: 3 | I183: 45 | J183: 3'45"
H184: 0 | I184: 0 | J184: 0'0"
H185: 0 | I185: 0 | J185: 0'0"
H186: 0 | I186: 0 | J186: 0'0"
H187: 0 | I187: 0 | J187: 0'0"
H188: 0 | I188: 0 | J188: 0'0"
H189: 0 | I189: 0 | J189: 0'0"
H190: 0 | I190: 0 | J190: 0'0"
H191: 0 | I191: 0 | J191: 0'0"
H192: 0 | I192: 0 | J192: 0'0"
H193: 0 | I193: 0 | J193: 0'0"
H194: 0 | I194: 0 | J194: 0'0"
H195: 0 | I195: 0 | J195: 0'0"
H196: 0 | I196: 0 | J196: 0'0"
B197: =LEFT(A197,1) ->  | C197: =MID(A197,3,2) ->  | D197: =B197*60+C197 ->  | H197: =QUOTIENT(G197,60) -> 0 | I197: =MOD(G197,60) -> 0 | J197: =H197&"'"&I197&"""" -> 0'0"
H198: 0 | I198: 0 | J198: 0'0"
H199: 0 | I199: 0 | J199: 0'0"
H200: 0 | I200: 0 | J200: 0'0"
G201: 217 | H201: 3 | I201: 37 | J201: 3'37"
... 250 more rows

Sheet Sheet1
A1: 年级编号 | B1: 班级编号 | C1: 班级名称 | D1: 学籍号 | E1: 民族代码 | F1: 姓名 | G1: 性别 | H1: 出生日期 | I1: 家庭住址 | J1: 身高 | K1: 体重 | L1: BMI | M1: BMI得分 | N1: 肺活量 | O1: 得分 | P1: 50米跑 | Q1: 得分 | R1: 坐位体前屈 | S1: 得分 | T1: 一分钟跳绳 | U1: 得分 | V1: 一分钟仰卧起坐 | W1: 得分 | X1: 50米×8往返跑 | Y1: 得分 | Z1: 立定跳远 | AA1: 得分 | AB1: 800米跑 | AC1: 得分 | AD1: 1000米跑 | AE1: 得分 | AF1: 引体向上 | AG1: 得分 | AH1: 总分 | AI1: 等级
A2: 23 | B2: 23012 | C2: 主校区2班 | D2: G110111200607012611 | E2: 11 | F2: 王凯毅 | G2: 1 | H2: 2006-07-01 | J2: 171.2 | K2: 63.4 | L2: =K2/(J2*J2/10000) -> 21.631256 | M2: =IF(G2=1,IF(L2<=15.7,80,IF(L2<=22.8,100,IF(L2<=26,80,60))),IF(G2=2,IF(L2<=15.9,80,IF(L2<=22.6,100,IF(L2<=25.1,80,60))))) -> 100 | N2: 3502 | O2: =IF(G2=1,IF(N2>=4240,100,IF(N2>=4120,95,IF(N2>=4000,90,IF(N2>=3750,85,IF(N2>=3500,80,IF(N2>=3380,78,IF(N2>=3260,76,IF(N2>=3140,74,IF(N2>=3020,72,IF(N2>=2900,70,IF(N2>=2780,68,IF(N2>=2660,66,IF(N2>=2540,64,IF(N2>=2420,62,IF(N2>=2300,60,IF(N2>=2180,50,IF(N2>=2060,40,IF(N2>=1940,30,IF(N2>=1820,20,IF(N2>=1700,10,0)))))))))))))))))))),IF(G2=2,IF(N2>3050,100,IF(N2>3000,95,IF(N2>2950,90,IF(N2>2800,85,IF(N2>2650,80,IF(N2>2550,78,IF(N2>2450,76,IF(N2>2350,74,IF(N2>2250,72,IF(N2>2150,70,IF(N2>2050,68,IF(N2>1950,66,IF(N2>1850,64,IF(N2>1750,62,IF(N2>1650,60,IF(N2>1610,50,IF(N2>1570,40,IF(N2>1530,30,IF(N2>1490,20,IF(N2>1450,10,0)))))))))))))))))))))) -> 80 | P2: 8.4 | Q2: =IF(G2=1,IF(P2<=7.3,100,IF(P2<=7.4,95,IF(P2<=7.5,90,IF(P2<=7.6,85,IF(P2<=7.7,80,IF(P2<=7.9,78,IF(P2<=8.1,76,IF(P2<=8.3,74,IF(P2<=8.5,72,IF(P2<=8.7,70,IF(P2<=8.9,68,IF(P2<=9.1,66,IF(P2<=9.3,64,IF(P2<=9.5,62,IF(P2<=9.7,60,IF(P2<=9.9,50,IF(P2<=10.1,40,IF(P2<=10.3,30,IF(P2<=10.5,20,IF(P2<=10.7,10,0)))))))))))))))))))),IF(G2=2,IF(P2<=7.9,100,IF(P2<=8,95,IF(P2<=8.1,90,IF(P2<=8.4,85,IF(P2<=8.7,80,IF(P2<=8.9,78,IF(P2<=9.1,76,IF(P2<=9.3,74,IF(P2<=9.5,72,IF(P2<=9.7,70,IF(P2<=9.9,68,IF(P2<=10.1,66,IF(P2<=10.3,64,IF(P2<=10.5,62,IF(P2<=10.7,60,IF(P2<=10.9,50,IF(P2<=11.1,40,IF(P2<=11.3,30,IF(P2<=11.5,20,IF(P2<=11.7,10,0)))))))))))))))))))))) -> 72 | R2: 15 | S2: =IF(G2=1,IF(R2>=21.6,100,IF(R2>=19.7,95,IF(R2>=17.8,90,IF(R2>=15.8,85,IF(R2>=13.8,80,IF(R2>=12.4,78,IF(R2>=11,76,IF(R2>=9.6,74,IF(R2>=8.2,72,IF(R2>=6.8,70,IF(R2>=5.4,68,IF(R2>=4,66,IF(R2>=2.6,64,IF(R2>=1.2,62,IF(R2>=-0.2,60,IF(R2>=-1.4,50,IF(R2>=-2.6,40,IF(R2>=-3.8,30,IF(R2>=-5,20,IF(R2>=-6.2,10,0)))))))))))))))))))),IF(G2=2,IF(R2>=23.5,100,IF(R2>=21.8,95,IF(R2>=20.1,90,IF(R2>=18.4,85,IF(R2>=16.7,80,IF(R2>=15.4,78,IF(R2>=14.1,76,IF(R2>=12.8,74,IF(R2>=11.5,72,IF(R2>=10.2,70,IF(R2>=8.9,68,IF(R2>=7.6,66,IF(R2>=6.3,64,IF(R2>=5,62,IF(R2>=3.7,60,IF(R2>=2.9,50,IF(R2>=2.1,40,IF(R2>=1.3,30,IF(R2>=0.5,20,IF(R2>=-0.3,10,0)))))))))))))))))))))) -> 80 | Z2: 245 | AA2: =IF(G2=1,IF(Z2>=250,100,IF(Z2>=245,95,IF(Z2>=240,90,IF(Z2>=233,85,IF(Z2>=225,80,IF(Z2>=221,78,IF(Z2>=217,76,IF(Z2>=213,74,IF(Z2>=209,72,IF(Z2>=205,70,IF(Z2>=201,68,IF(Z2>=197,66,IF(Z2>=193,64,IF(Z2>=189,62,IF(Z2>=185,60,IF(Z2>=180,50,IF(Z2>=175,40,IF(Z2>=170,30,IF(Z2>=165,20,IF(Z2>=160,10,0)))))))))))))))))))),IF(G2=2,IF(Z2>=202,100,IF(Z2>=196,95,IF(Z2>=190,90,IF(Z2>=183,85,IF(Z2>=176,80,IF(Z2>=173,78,IF(Z2>=170,76,IF(Z2>=167,74,IF(Z2>=164,72,IF(Z2>=161,70,IF(Z2>=158,68,IF(Z2>=155,66,IF(Z2>=152,64,IF(Z2>=149,62,IF(Z2>=146,60,IF(Z2>=141,50,IF(Z2>=136,40,IF(Z2>=131,30,IF(Z2>=126,20,IF(Z2>=121,10,0)))))))))))))))))))))) -> 95 | AD2: 245 | AE2: =IF(AD2<=220,100,IF(AD2<=225,95,IF(AD2<=230,90,IF(AD2<=237,85,IF(AD2<=245,80,IF(AD2<=250,78,IF(AD2<=255,76,IF(AD2<=260,74,IF(AD2<=265,72,IF(AD2<=270,70,IF(AD2<=275,68,IF(AD2<=280,66,IF(AD2<=285,64,IF(AD2<=290,62,IF(AD2<=295,60,IF(AD2<=315,50,IF(AD2<=335,40,IF(AD2<=355,30,IF(AD2<=375,20,IF(AD2<=395,10,0)))))))))))))))))))) -> 80 | AF2: 0 | AG2: =IF(AF2>=15,100,IF(AF2>=14,95,IF(AF2>=13,90,IF(AF2>=12,85,IF(AF2>=11,80,IF(AF2>=10,76,IF(AF2>=9,72,IF(AF2>=8,68,IF(AF2>=7,64,IF(AF2>=6,60,IF(AF2>=5,50,IF(AF2>=4,40,IF(AF2>=3,30,IF(AF2>=2,20,IF(AF2>=1,10,0))))))))))))))) -> 0 | AH2: =IF(G2=1,M2*0.15+O2*0.15+Q2*0.2+S2*0.1+AA2*0.1+AG2*0.1+AE2*0.2,IF(G2=2,M2*0.15+O2*0.15+Q2*0.2+S2*0.1+AA2*0.1+W2*0.1+AC2*0.2)) -> 74.9 | AI2: =IF(AH2>=90,"优秀",IF(AH2>=80,"良好",IF(AH2>=60,"及格","不及格"))) -> 及格
A3: 23 | B3: 23012 | C3: 主校区2班 | D3: G110111200512197019 | E3: 3 | F3: 刘凯平 | G3: 1 | H3: 2005-12-19 | J3: 176 | K3: 69.6 | L3: =K3/(J3*J3/10000) -> 22.46900826 | M3: =IF(G3=1,IF(L3<=15.7,80,IF(L3<=22.8,100,IF(L3<=26,80,60))),IF(G3=2,IF(L3<=15.9,80,IF(L3<=22.6,100,IF(L3<=25.1,80,60))))) -> 100 | N3: 4211 | O3: =IF(G3=1,IF(N3>=4240,100,IF(N3>=4120,95,IF(N3>=4000,90,IF(N3>=3750,85,IF(N3>=3500,80,IF(N3>=3380,78,IF(N3>=3260,76,IF(N3>=3140,74,IF(N3>=3020,72,IF(N3>=2900,70,IF(N3>=2780,68,IF(N3>=2660,66,IF(N3>=2540,64,IF(N3>=2420,62,IF(N3>=2300,60,IF(N3>=2180,50,IF(N3>=2060,40,IF(N3>=1940,30,IF(N3>=1820,20,IF(N3>=1700,10,0)))))))))))))))))))),IF(G3=2,IF(N3>3050,100,IF(N3>3000,95,IF(N3>2950,90,IF(N3>2800,85,IF(N3>2650,80,IF(N3>2550,78,IF(N3>2450,76,IF(N3>2350,74,IF(N3>2250,72,IF(N3>2150,70,IF(N3>2050,68,IF(N3>1950,66,IF(N3>1850,64,IF(N3>1750,62,IF(N3>1650,60,IF(N3>1610,50,IF(N3>1570,40,IF(N3>1530,30,IF(N3>1490,20,IF(N3>1450,10,0)))))))))))))))))))))) -> 95 | P3: 8.7 | Q3: =IF(G3=1,IF(P3<=7.3,100,IF(P3<=7.4,95,IF(P3<=7.5,90,IF(P3<=7.6,85,IF(P3<=7.7,80,IF(P3<=7.9,78,IF(P3<=8.1,76,IF(P3<=8.3,74,IF(P3<=8.5,72,IF(P3<=8.7,70,IF(P3<=8.9,68,IF(P3<=9.1,66,IF(P3<=9.3,64,IF(P3<=9.5,62,IF(P3<=9.7,60,IF(P3<=9.9,50,IF(P3<=10.1,40,IF(P3<=10.3,30,IF(P3<=10.5,20,IF(P3<=10.7,10,0)))))))))))))))))))),IF(G3=2,IF(P3<=7.9,100,IF(P3<=8,95,IF(P3<=8.1,90,IF(P3<=8.4,85,IF(P3<=8.7,80,IF(P3<=8.9,78,IF(P3<=9.1,76,IF(P3<=9.3,74,IF(P3<=9.5,72,IF(P3<=9.7,70,IF(P3<=9.9,68,IF(P3<=10.1,66,IF(P3<=10.3,64,IF(P3<=10.5,62,IF(P3<=10.7,60,IF(P3<=10.9,50,IF(P3<=11.1,40,IF(P3<=11.3,30,IF(P3<=11.5,20,IF(P3<=11.7,10,0)))))))))))))))))))))) -> 70 | R3: 5.5 | S3: =IF(G3=1,IF(R3>=21.6,100,IF(R3>=19.7,95,IF(R3>=17.8,90,IF(R3>=15.8,85,IF(R3>=13.8,80,IF(R3>=12.4,78,IF(R3>=11,76,IF(R3>=9.6,74,IF(R3>=8.2,72,IF(R3>=6.8,70,IF(R3>=5.4,68,IF(R3>=4,66,IF(R3>=2.6,64,IF(R3>=1.2,62,IF(R3>=-0.2,60,IF(R3>=-1.4,50,IF(R3>=-2.6,40,IF(R3>=-3.8,30,IF(R3>=-5,20,IF(R3>=-6.2,10,0)))))))))))))))))))),IF(G3=2,IF(R3>=23.5,100,IF(R3>=21.8,95,IF(R3>=20.1,90,IF(R3>=18.4,85,IF(R3>=16.7,80,IF(R3>=15.4,78,IF(R3>=14.1,76,IF(R3>=12.8,74,IF(R3>=11.5,72,IF(R3>=10.2,70,IF(R3>=8.9,68,IF(R3>=7.6,66,IF(R3>=6.3,64,IF(R3>=5,62,IF(R3>=3.7,60,IF(R3>=2.9,50,IF(R3>=2.1,40,IF(R3>=1.3,30,IF(R3>=0.5,20,IF(R3>=-0.3,10,0)))))))))))))))))))))) -> 68 | Z3: 210 | AA3: =IF(G3=1,IF(Z3>=250,100,IF(Z3>=245,95,IF(Z3>=240,90,IF(Z3>=233,85,IF(Z3>=225,80,IF(Z3>=221,78,IF(Z3>=217,76,IF(Z3>=213,74,IF(Z3>=209,72,IF(Z3>=205,70,IF(Z3>=201,68,IF(Z3>=197,66,IF(Z3>=193,64,IF(Z3>=189,62,IF(Z3>=185,60,IF(Z3>=180,50,IF(Z3>=175,40,IF(Z3>=170,30,IF(Z3>=165,20,IF(Z3>=160,10,0)))))))))))))))))))),IF(G3=2,IF(Z3>=202,100,IF(Z3>=196,95,IF(Z3>=190,90,IF(Z3>=183,85,IF(Z3>=176,80,IF(Z3>=173,78,IF(Z3>=170,76,IF(Z3>=167,74,IF(Z3>=164,72,IF(Z3>=161,70,IF(Z3>=158,68,IF(Z3>=155,66,IF(Z3>=152,64,IF(Z3>=149,62,IF(Z3>=146,60,IF(Z3>=141,50,IF(Z3>=136,40,IF(Z3>=131,30,IF(Z3>=126,20,IF(Z3>=121,10,0)))))))))))))))))))))) -> 72 | AD3: 246 | AE3: =IF(AD3<=220,100,IF(AD3<=225,95,IF(AD3<=230,90,IF(AD3<=237,85,IF(AD3<=245,80,IF(AD3<=250,78,IF(AD3<=255,76,IF(AD3<=260,74,IF(AD3<=265,72,IF(AD3<=270,70,IF(AD3<=275,68,IF(AD3<=280,66,IF(AD3<=285,64,IF(AD3<=290,62,IF(AD3<=295,60,IF(AD3<=315,50,IF(AD3<=335,40,IF(AD3<=355,30,IF(AD3<=375,20,IF(AD3<=395,10,0)))))))))))))))))))) -> 78 | AF3: 1 | AG3: =IF(AF3>=15,100,IF(AF3>=14,95,IF(AF3>=13,90,IF(AF3>=12,85,IF(AF3>=11,80,IF(AF3>=10,76,IF(AF3>=9,72,IF(AF3>=8,68,IF(AF3>=7,64,IF(AF3>=6,60,IF(AF3>=5,50,IF(AF3>=4,40,IF(AF3>=3,30,IF(AF3>=2,20,IF(AF3>=1,10,0))))))))))))))) -> 10 | AH3: =IF(G3=1,M3*0.15+O3*0.15+Q3*0.2+S3*0.1+AA3*0.1+AG3*0.1+AE3*0.2,IF(G3=2,M3*0.15+O3*0.15+Q3*0.2+S3*0.1+AA3*0.1+W3*0.1+AC3*0.2)) -> 73.85 | AI3: =IF(AH3>=90,"优秀",IF(AH3>=80,"良好",IF(AH3>=60,"及格","不及格"))) -> 及格
A4: 23 | B4: 23012 | C4: 主校区2班 | D4: G110111200506272617 | E4: 1 | F4: 王宇箭 | G4: 1 | H4: 2005-06-27 | J4: 172 | K4: 68.4 | L4: 23.12060573 | M4: 80 | N4: 2645 | O4: 64 | P4: 8.7 | Q4: 70 | R4: 7.6 | S4: 70 | Z4: 205 | AA4: 70 | AD4: 234 | AE4: 85 | AF4: 1 | AG4: 10 | AH4: 67.6 | AI4: 及格
A5: 23 | B5: 23012 | C5: 主校区2班 | D5: G110111200603277057 | E5: 1 | F5: 高于跃 | G5: 1 | H5: 2006-03-27 | J5: 166 | K5: 66.2 | L5: 24.02380607 | M5: 80 | N5: 3326 | O5: 76 | P5: 9.8 | Q5: 50 | R5: 3.4 | S5: 64 | Z5: 210 | AA5: 72 | AD5: 317 | AE5: 40 | AF5: 0 | AG5: 0 | AH5: 55 | AI5: 不及格
A6: 23 | B6: 23012 | C6: 主校区2班 | D6: G110111200511107034 | E6: 1 | F6: 许培钧 | G6: 1 | H6: 2005-11-10 | J6: 184.5 | K6: 107.1 | L6: 31.46275365 | M6: 60 | N6: 5337 | O6: 100 | P6: 9.2 | Q6: 64 | R6: 10.2 | S6: 74 | Z6: 180 | AA6: 50 | AD6: 285 | AE6: 64 | AF6: 0 | AG6: 0 | AH6: 62 | AI6: 及格
A7: 23 | B7: 23012 | C7: 主校区2班 | D7: G110111200603017052 | E7: 1 | F7: 曾卓凡 | G7: 1 | H7: 2006-03-01 | J7: 182.5 | K7: 69 | L7: 20.71683243 | M7: 100 | N7: 4002 | O7: 90 | P7: 7.8 | Q7: 78 | R7: 5.8 | S7: 68 | Z7: 235 | AA7: 85 | AD7: 225 | AE7: 95 | AF7: 5 | AG7: 50 | AH7: 83.4 | AI7: 良好
A8: 23 | B8: 23012 | C8: 主校区2班 | D8: G500234200607036034 | E8: 1 | F8: 付宣志 | G8: 1 | H8: 2006-07-03 | J8: 168.2 | K8: 52.4 | L8: 18.52163426 | M8: 100 | N8: 2911 | O8: 70 | P8: 10 | Q8: 40 | R8: 14.5 | S8: 80 | Z8: 180 | AA8: 50 | AD8: 260 | AE8: 74 | AF8: 2 | AG8: 20 | AH8: 63.3 | AI8: 及格
A9: 23 | B9: 23012 | C9: 主校区2班 | D9: G110111200603037010 | E9: 1 | F9: 任鹏越 | G9: 1 | H9: 2006-03-03 | J9: 160.8 | K9: 47.7 | L9: 18.44787258 | M9: 100 | N9: 2763 | O9: 66 | P9: 7.3 | Q9: 100 | R9: 13.5 | S9: 78 | Z9: 250 | AA9: 100 | AD9: 233 | AE9: 85 | AF9: 13 | AG9: 90 | AH9: 88.7 | AI9: 良好
A10: 23 | B10: 23012 | C10: 主校区2班 | D10: G110111200605082616 | E10: 2 | F10: 孙有明 | G10: 1 | H10: 2006-05-08 | J10: 176.5 | K10: 87.1 | L10: 27.95945718 | M10: 60 | N10: 3317 | O10: 76 | P10: 13.4 | Q10: 0 | R10: -2 | S10: 40 | Z10: 155 | AA10: 0 | AD10: 354 | AE10: 30 | AF10: 0 | AG10: 0 | AH10: 30.4 | AI10: 不及格
A11: 23 | B11: 23012 | C11: 主校区2班 | D11: G110111200512237017 | E11: 1 | F11: 许高斯童 | G11: 1 | H11: 2005-12-23 | J11: 169.5 | K11: 66.4 | L11: 23.11152879 | M11: 80 | N11: 3893 | O11: 85 | P11: 9.4 | Q11: 62 | R11: 11 | S11: 76 | Z11: 180 | AA11: 50 | AD11: 260 | AE11: 74 | AF11: 0 | AG11: 0 | AH11: 64.55 | AI11: 及格 | AJ11: 优秀
A12: 23 | B12: 23012 | C12: 主校区2班 | D12: G110111200501217010 | E12: 1 | F12: 于天泽 | G12: 1 | H12: 2005-01-21 | J12: 171.9 | K12: 72.4 | L12: 24.50116939 | M12: 80 | N12: 4417 | O12: 100 | P12: 9.9 | Q12: 50 | R12: -5 | S12: 20 | Z12: 180 | AA12: 50 | AD12: 274 | AE12: 68 | AF12: 0 | AG12: 0 | AH12: 57.6 | AI12: 不及格 | AJ12: =COUNTIF(AI2:AI500,"优秀") -> 0
A13: 23 | B13: 23012 | C13: 主校区2班 | D13: G110111200603090823 | E13: 1 | F13: 陈俊 | G13: 2 | H13: 2006-03-09 | J13: 155.8 | K13: 52.4 | L13: 21.58720324 | M13: 100 | N13: 2268 | O13: 72 | P13: 11.2 | Q13: 30 | R13: 17.5 | S13: 80 | V13: 38 | W13: =IF(V13>=52,100,IF(V13>=50,95,IF(V13>=48,90,IF(V13>=45,85,IF(V13>=42,80,IF(V13>=40,78,IF(V13>=38,76,IF(V13>=36,74,IF(V13>=34,72,IF(V13>=32,70,IF(V13>=30,68,IF(V13>=28,66,IF(V13>=26,64,IF(V13>=24,62,IF(V13>=22,60,IF(V13>=20,50,IF(V13>=18,40,IF(V13>=16,30,IF(V13>=14,20,IF(V13>=12,10,0)))))))))))))))))))) -> 76 | Z13: 140 | AA13: 40 | AB13: 228 | AC13: =IF(AB13<=205,100,IF(AB13<=212,95,IF(AB13<=219,90,IF(AB13<=227,85,IF(AB13<=235,80,IF(AB13<=240,78,IF(AB13<=245,76,IF(AB13<=250,74,IF(AB13<=255,72,IF(AB13<=260,70,IF(AB13<=265,68,IF(AB13<=270,66,IF(AB13<=275,64,IF(AB13<=280,62,IF(AB13<=285,60,IF(AB13<=295,50,IF(AB13<=305,40,IF(AB13<=315,30,IF(AB13<=325,20,IF(AB13<=335,10,0)))))))))))))))))))) -> 80 | AH13: 67.4 | AI13: 及格 | AJ13: 良好
A14: 23 | B14: 23012 | C14: 主校区2班 | D14: G110111200604137064 | E14: 1 | F14: 黄艺萌 | G14: 2 | H14: 2006-04-13 | J14: 170 | K14: 104.9 | L14: 36.29757785 | M14: 60 | N14: 3307 | O14: 100 | P14: 11.2 | Q14: 30 | R14: 10 | S14: 68 | V14: 20 | W14: 50 | Z14: 140 | AA14: 40 | AB14: 309 | AC14: =IF(AB14<=205,100,IF(AB14<=212,95,IF(AB14<=219,90,IF(AB14<=227,85,IF(AB14<=235,80,IF(AB14<=240,78,IF(AB14<=245,76,IF(AB14<=250,74,IF(AB14<=255,72,IF(AB14<=260,70,IF(AB14<=265,68,IF(AB14<=270,66,IF(AB14<=275,64,IF(AB14<=280,62,IF(AB14<=285,60,IF(AB14<=295,50,IF(AB14<=305,40,IF(AB14<=315,30,IF(AB14<=325,20,IF(AB14<=335,10,0)))))))))))))))))))) -> 30 | AH14: 51.8 | AI14: 不及格 | AJ14: =COUNTIF(AI2:AI500,"良好") -> 7
A15: 23 | B15: 23012 | C15: 主校区2班 | D15: G110111200607307049 | E15: 1 | F15: 黄雨彤 | G15: 2 | H15: 2006-07-30 | J15: 156 | K15: 46.4 | L15: 19.06640368 | M15: 100 | N15: 2150 | O15: 68 | Q15: 100 | R15: 10.5 | S15: 70 | V15: 40 | W15: 78 | Z15: 175 | AA15: 78 | AH15: 67.8 | AI15: 及格 | AJ15: 及格
A16: 23 | B16: 23012 | C16: 主校区2班 | D16: G110111200509077024 | E16: 1 | F16: 栗睿 | G16: 2 | H16: 2005-09-07 | J16: 164 | K16: 53.4 | L16: 19.85425342 | M16: 100 | N16: 1853 | O16: 64 | P16: 10 | Q16: 66 | R16: 7 | S16: 64 | V16: 27 | W16: 64 | Z16: 165 | AA16: 72 | AB16: 227 | AC16: =IF(AB16<=205,100,IF(AB16<=212,95,IF(AB16<=219,90,IF(AB16<=227,85,IF(AB16<=235,80,IF(AB16<=240,78,IF(AB16<=245,76,IF(AB16<=250,74,IF(AB16<=255,72,IF(AB16<=260,70,IF(AB16<=265,68,IF(AB16<=270,66,IF(AB16<=275,64,IF(AB16<=280,62,IF(AB16<=285,60,IF(AB16<=295,50,IF(AB16<=305,40,IF(AB16<=315,30,IF(AB16<=325,20,IF(AB16<=335,10,0)))))))))))))))))))) -> 85 | AH16: 74.8 | AI16: 及格 | AJ16: =COUNTIF(AI2:AI500,"及格") -> 30
A17: 23 | B17: 23012 | C17: 主校区2班 | D17: G110111200601067021 | E17: 1 | F17: 张惠然 | G17: 2 | H17: 2006-01-06 | J17: 164 | K17: 63 | L17: 23.42355741 | M17: 80 | N17: 2123 | O17: 68 | P17: 10.2 | Q17: 64 | R17: 13 | S17: 74 | V17: 50 | W17: 95 | Z17: 150 | AA17: 62 | AB17: 240 | AC17: 78 | AH17: 73.7 | AI17: 及格 | AJ17: 不及格
A18: 23 | B18: 23012 | C18: 主校区2班 | D18: G11011120060829522X | E18: 1 | F18: 张亚凝 | G18: 2 | H18: 2006-08-29 | J18: 162 | K18: 79 | L18: 30.10211858 | M18: 60 | N18: 1700 | O18: 60 | P18: 13.7 | Q18: 0 | R18: 16.5 | S18: 78 | V18: 30 | W18: 68 | Z18: 130 | AA18: 20 | AB18: 347 | AC18: 0 | AH18: 34.6 | AI18: 不及格 | AJ18: =COUNTIF(AI2:AI500,"不及格") -> 16
A19: 23 | B19: 23012 | C19: 主校区2班 | D19: G110111200512127045 | E19: 1 | F19: 张宇潇 | G19: 2 | H19: 2005-12-12 | J19: 174 | K19: 90.6 | L19: 29.92469283 | M19: 60 | N19: 3770 | O19: 100 | P19: 10.9 | Q19: 50 | R19: 2.5 | S19: 40 | V19: 25 | W19: 62 | Z19: 140 | AA19: 40 | AB19: 293 | AC19: 50 | AH19: 58.2 | AI19: 不及格
A20: 23 | B20: 23012 | C20: 主校区2班 | D20: G110106200602101526 | E20: 1 | F20: 常笑 | G20: 2 | H20: 2006-02-10 | J20: 170.5 | K20: 95.4 | L20: 32.81705524 | M20: 60 | N20: 3537 | O20: 100 | P20: 11.7 | Q20: 10 | R20: 11 | S20: 70 | V20: 24 | W20: 62 | Z20: 140 | AA20: 40 | AB20: 265 | AC20: 68 | AH20: 56.8 | AI20: 不及格
A21: 23 | B21: 23012 | C21: 主校区2班 | D21: G110111200607247023 | E21: 11 | F21: 闻莎 | G21: 2 | H21: 2006-07-24 | J21: 167.2 | K21: 48.2 | L21: 17.24147799 | M21: 100 | N21: 2615 | O21: 78 | P21: 10.1 | Q21: 66 | R21: 10.5 | S21: 70 | V21: 37 | W21: 74 | Z21: 185 | AA21: 85 | AB21: 218 | AC21: 90 | AH21: 80.8 | AI21: 良好
A22: 23 | B22: 23012 | C22: 主校区2班 | D22: G110111200606082626 | E22: 11 | F22: 方欣 | G22: 2 | H22: 2006-06-08 | J22: 147 | K22: 35.7 | L22: 16.52089407 | M22: 100 | N22: 2811 | O22: 85 | P22: 10.1 | Q22: 66 | R22: 10 | S22: 68 | V22: 44 | W22: 80 | Z22: 155 | AA22: 66 | AB22: 227 | AC22: 85 | AH22: 79.35 | AI22: 及格
A23: 23 | B23: 23012 | C23: 主校区2班 | D23: L110111200510160060 | E23: 1 | F23: 李晨晨 | G23: 2 | H23: 2005-10-16 | J23: 165.5 | K23: 62.5 | L23: 22.81833864 | M23: 80 | N23: 1812 | O23: 62 | P23: 10.3 | Q23: 64 | R23: 6 | S23: 62 | V23: 31 | W23: 68 | Z23: 155 | AA23: 66 | AB23: 225 | AC23: 85 | AH23: 70.7 | AI23: 及格
A24: 23 | B24: 23012 | C24: 主校区2班 | D24: G370828200605022326 | E24: 1 | F24: 孙璐瑶 | G24: 2 | H24: 2006-05-02 | J24: 160.5 | K24: 56.1 | L24: 21.77773896 | M24: 100 | N24: 2841 | O24: 85 | P24: 10.6 | Q24: 60 | R24: 7.5 | S24: 64 | V24: 34 | W24: 72 | Z24: 160 | AA24: 68 | AB24: 227 | AC24: 85 | AH24: 77.15 | AI24: 及格
A25: 23 | B25: 23012 | C25: 主校区2班 | D25: G110117200601266248 | E25: 1 | F25: 王程烨 | G25: 2 | H25: 2006-01-26 | J25: 161.9 | K25: 56.5 | L25: 21.55533369 | M25: 100 | N25: 2460 | O25: 76 | P25: 10.8 | Q25: 50 | R25: 6 | S25: 62 | V25: 45 | W25: 85 | Z25: 150 | AA25: 62 | AB25: 231 | AC25: 80 | AH25: 73.3 | AI25: 及格
A26: 23 | B26: 23012 | C26: 主校区2班 | D26: G110111200605027027 | E26: 1 | F26: 王若妍 | G26: 2 | H26: 2006-05-02 | J26: 170.2 | K26: 88.5 | L26: 30.55091059 | M26: 60 | N26: 3019 | O26: 95 | P26: 11.1 | Q26: 40 | R26: 8 | S26: 66 | V26: 33 | W26: 70 | Z26: 135 | AA26: 30 | AB26: 280 | AC26: 62 | AH26: 60.25 | AI26: 及格
A27: 23 | B27: 23012 | C27: 主校区2班 | D27: G110111200608012226 | E27: 1 | F27: 闫宇轩 | G27: 2 | H27: 2006-08-01 | J27: 161.5 | K27: 47 | L27: 18.01991776 | M27: 100 | N27: 2380 | O27: 74 | P27: 10.5 | Q27: 62 | R27: 12.5 | S27: 72 | V27: 42 | W27: 80 | Z27: 140 | AA27: 40 | AB27: 220 | AC27: 85 | AH27: 74.7 | AI27: 及格
A28: 23 | B28: 23012 | C28: 主校区2班 | D28: G110111200601297046 | E28: 1 | F28: 于鑫梅 | G28: 2 | H28: 2006-01-29 | J28: 164.5 | K28: 43.1 | L28: 15.92742122 | M28: 100 | N28: 2768 | O28: 80 | P28: 10.7 | Q28: 60 | R28: 10 | S28: 68 | V28: 44 | W28: 80 | Z28: 155 | AA28: 66 | AB28: 235 | AC28: 80 | AH28: 76.4 | AI28: 及格
A29: 23 | B29: 23013 | C29: 主校区3班 | D29: G110111200607013016 | E29: 11 | F29: 姚程翔 | G29: 1 | H29: 2006-07-01 | J29: 168.4 | K29: 52.3 | L29: 18.44240328 | M29: 100 | N29: 3283 | O29: 76 | P29: 8.9 | Q29: 68 | R29: 17 | S29: 85 | Z29: 215 | AA29: 74 | AD29: 243 | AE29: 80 | AF29: 9 | AG29: 72 | AH29: 79.1 | AI29: 及格
A30: 23 | B30: 23013 | C30: 主校区3班 | D30: G110111200604232213 | E30: 1 | F30: 周鼎轩 | G30: 1 | H30: 2006-04-23 | J30: 170 | K30: 51.4 | L30: 17.78546713 | M30: 100 | N30: 3314 | O30: 76 | P30: 9.3 | Q30: 64 | R30: 8.9 | S30: 72 | Z30: 170 | AA30: 30 | AD30: 239 | AE30: 80 | AF30: 0 | AG30: 0 | AH30: 65.4 | AI30: 及格
A31: 23 | B31: 23013 | C31: 主校区3班 | D31: G110111200510107016 | E31: 1 | F31: 杨粮鸿 | G31: 1 | H31: 2005-10-10 | J31: 179 | K31: 91.5 | L31: 28.55716114 | M31: 60 | N31: 3847 | O31: 85 | P31: 10.7 | Q31: 10 | R31: 13.3 | S31: 78 | Z31: 175 | AA31: 40 | AE31: 100 | AF31: 1 | AG31: 10 | AH31: 56.55 | AI31: 不及格
A32: 23 | B32: 23013 | C32: 主校区3班 | D32: G110111200605122614 | E32: 11 | F32: 李逸凡 | G32: 1 | H32: 2006-05-12 | J32: 170.2 | K32: 53.7 | L32: 18.53767117 | M32: 100 | N32: 3237 | O32: 74 | P32: 8.7 | Q32: 70 | R32: 19.6 | S32: 90 | Z32: 210 | AA32: 72 | AD32: 263 | AE32: 72 | AF32: 2 | AG32: 20 | AH32: 72.7 | AI32: 及格
A33: 23 | B33: 23013 | C33: 主校区3班 | D33: G110111200605017013 | E33: 1 | F33: 杨柯 | G33: 1 | H33: 2006-05-01 | J33: 164.3 | K33: 49.8 | L33: 18.44820925 | M33: 100 | N33: 2751 | O33: 66 | P33: 8.9 | Q33: 68 | R33: 6.7 | S33: 68 | Z33: 180 | AA33: 50 | AD33: 246 | AE33: 78 | AF33: 7 | AG33: 64 | AH33: 72.3 | AI33: 及格
A34: 23 | B34: 23013 | C34: 主校区3班 | D34: G110111200511267038 | E34: 1 | F34: 高子圳 | G34: 1 | H34: 2005-11-26 | J34: 174.8 | K34: 51.2 | L34: 16.75664637 | M34: 100 | N34: 2993 | O34: 70 | P34: 8 | Q34: 76 | R34: 8.2 | S34: 72 | Z34: 240 | AA34: 90 | AD34: 270 | AE34: 70 | AF34: 11 | AG34: 80 | AH34: 78.9 | AI34: 及格
A35: 23 | B35: 23013 | C35: 主校区3班 | D35: G110111200606232612 | E35: 1 | F35: 李嘉萱 | G35: 1 | H35: 2006-06-23 | J35: 167.5 | K35: 79.6 | L35: =K35/(J35*J35/10000) -> 28.37157496 | M35: =IF(G35=1,IF(L35<=15.7,80,IF(L35<=22.8,100,IF(L35<=26,80,60))),IF(G35=2,IF(L35<=15.9,80,IF(L35<=22.6,100,IF(L35<=25.1,80,60))))) -> 60 | N35: 4001 | O35: =IF(G35=1,IF(N35>=4240,100,IF(N35>=4120,95,IF(N35>=4000,90,IF(N35>=3750,85,IF(N35>=3500,80,IF(N35>=3380,78,IF(N35>=3260,76,IF(N35>=3140,74,IF(N35>=3020,72,IF(N35>=2900,70,IF(N35>=2780,68,IF(N35>=2660,66,IF(N35>=2540,64,IF(N35>=2420,62,IF(N35>=2300,60,IF(N35>=2180,50,IF(N35>=2060,40,IF(N35>=1940,30,IF(N35>=1820,20,IF(N35>=1700,10,0)))))))))))))))))))),IF(G35=2,IF(N35>3050,100,IF(N35>3000,95,IF(N35>2950,90,IF(N35>2800,85,IF(N35>2650,80,IF(N35>2550,78,IF(N35>2450,76,IF(N35>2350,74,IF(N35>2250,72,IF(N35>2150,70,IF(N35>2050,68,IF(N35>1950,66,IF(N35>1850,64,IF(N35>1750,62,IF(N35>1650,60,IF(N35>1610,50,IF(N35>1570,40,IF(N35>1530,30,IF(N35>1490,20,IF(N35>1450,10,0)))))))))))))))))))))) -> 90 | P35: 9 | Q35: =IF(G35=1,IF(P35<=7.3,100,IF(P35<=7.4,95,IF(P35<=7.5,90,IF(P35<=7.6,85,IF(P35<=7.7,80,IF(P35<=7.9,78,IF(P35<=8.1,76,IF(P35<=8.3,74,IF(P35<=8.5,72,IF(P35<=8.7,70,IF(P35<=8.9,68,IF(P35<=9.1,66,IF(P35<=9.3,64,IF(P35<=9.5,62,IF(P35<=9.7,60,IF(P35<=9.9,50,IF(P35<=10.1,40,IF(P35<=10.3,30,IF(P35<=10.5,20,IF(P35<=10.7,10,0)))))))))))))))))))),IF(G35=2,IF(P35<=7.9,100,IF(P35<=8,95,IF(P35<=8.1,90,IF(P35<=8.4,85,IF(P35<=8.7,80,IF(P35<=8.9,78,IF(P35<=9.1,76,IF(P35<=9.3,74,IF(P35<=9.5,72,IF(P35<=9.7,70,IF(P35<=9.9,68,IF(P35<=10.1,66,IF(P35<=10.3,64,IF(P35<=10.5,62,IF(P35<=10.7,60,IF(P35<=10.9,50,IF(P35<=11.1,40,IF(P35<=11.3,30,IF(P35<=11.5,20,IF(P35<=11.7,10,0)))))))))))))))))))))) -> 66 | R35: 6 | S35: =IF(G35=1,IF(R35>=21.6,100,IF(R35>=19.7,95,IF(R35>=17.8,90,IF(R35>=15.8,85,IF(R35>=13.8,80,IF(R35>=12.4,78,IF(R35>=11,76,IF(R35>=9.6,74,IF(R35>=8.2,72,IF(R35>=6.8,70,IF(R35>=5.4,68,IF(R35>=4,66,IF(R35>=2.6,64,IF(R35>=1.2,62,IF(R35>=-0.2,60,IF(R35>=-1.4,50,IF(R35>=-2.6,40,IF(R35>=-3.8,30,IF(R35>=-5,20,IF(R35>=-6.2,10,0)))))))))))))))))))),IF(G35=2,IF(R35>=23.5,100,IF(R35>=21.8,95,IF(R35>=20.1,90,IF(R35>=18.4,85,IF(R35>=16.7,80,IF(R35>=15.4,78,IF(R35>=14.1,76,IF(R35>=12.8,74,IF(R35>=11.5,72,IF(R35>=10.2,70,IF(R35>=8.9,68,IF(R35>=7.6,66,IF(R35>=6.3,64,IF(R35>=5,62,IF(R35>=3.7,60,IF(R35>=2.9,50,IF(R35>=2.1,40,IF(R35>=1.3,30,IF(R35>=0.5,20,IF(R35>=-0.3,10,0)))))))))))))))))))))) -> 68 | Z35: 200 | AA35: =IF(G35=1,IF(Z35>=250,100,IF(Z35>=245,95,IF(Z35>=240,90,IF(Z35>=233,85,IF(Z35>=225,80,IF(Z35>=221,78,IF(Z35>=217,76,IF(Z35>=213,74,IF(Z35>=209,72,IF(Z35>=205,70,IF(Z35>=201,68,IF(Z35>=197,66,IF(Z35>=193,64,IF(Z35>=189,62,IF(Z35>=185,60,IF(Z35>=180,50,IF(Z35>=175,40,IF(Z35>=170,30,IF(Z35>=165,20,IF(Z35>=160,10,0)))))))))))))))))))),IF(G35=2,IF(Z35>=202,100,IF(Z35>=196,95,IF(Z35>=190,90,IF(Z35>=183,85,IF(Z35>=176,80,IF(Z35>=173,78,IF(Z35>=170,76,IF(Z35>=167,74,IF(Z35>=164,72,IF(Z35>=161,70,IF(Z35>=158,68,IF(Z35>=155,66,IF(Z35>=152,64,IF(Z35>=149,62,IF(Z35>=146,60,IF(Z35>=141,50,IF(Z35>=136,40,IF(Z35>=131,30,IF(Z35>=126,20,IF(Z35>=121,10,0)))))))))))))))))))))) -> 66 | AD35: 227 | AE35: 90 | AF35: 0 | AG35: 0 | AH35: =IF(G35=1,M35*0.15+O35*0.15+Q35*0.2+S35*0.1+AA35*0.1+AG35*0.1+AE35*0.2,IF(G35=2,M35*0.15+O35*0.15+Q35*0.2+S35*0.1+AA35*0.1+W35*0.1+AC35*0.2)) -> 67.1 | AI35: =IF(AH35>=90,"优秀",IF(AH35>=80,"良好",IF(AH35>=60,"及格","不及格"))) -> 及格
A36: 23 | B36: 23013 | C36: 主校区3班 | D36: G110111200603210039 | E36: 11 | F36: 孙喆 | G36: 1 | H36: 2006-03-21 | J36: 167.5 | K36: 55.4 | L36: 19.74604589 | M36: 100 | N36: 3869 | O36: 85 | P36: 8.4 | Q36: 72 | R36: 23 | S36: 100 | Z36: 185 | AA36: 60 | AD36: 234 | AE36: 85 | AF36: 7 | AG36: 64 | AH36: 81.55 | AI36: 良好
A37: 23 | B37: 23013 | C37: 主校区3班 | D37: G110108200502100713 | E37: 6 | F37: 沈文鑫 | G37: 1 | H37: 2005-02-10 | J37: 172.5 | K37: 73.9 | L37: 24.83511867 | M37: 80 | N37: 3807 | O37: 85 | P37: 9.6 | Q37: 60 | R37: 3.1 | S37: 64 | Z37: 170 | AA37: 30 | AD37: 280 | AE37: 66 | AF37: 0 | AG37: 0 | AH37: 59.35 | AI37: 不及格
A38: 23 | B38: 23013 | C38: 主校区3班 | D38: L11011120060309009X | E38: 1 | F38: 杨晓璇 | G38: 1 | H38: 2006-03-09 | J38: 177.5 | K38: 57.8 | L38: 18.34556636 | M38: 100 | N38: 3725 | O38: 80 | P38: 8.8 | Q38: 68 | R38: 4.9 | S38: 66 | Z38: 180 | AA38: 50 | AD38: 213 | AE38: 100 | AF38: 15 | AG38: 100 | AH38: 82.2 | AI38: 良好
A39: 23 | B39: 23013 | C39: 主校区3班 | D39: G110111200606284041 | E39: 1 | F39: 李宇鑫 | G39: 2 | H39: 2006-06-28 | J39: 159 | K39: 60 | L39: 23.7332384 | M39: 80 | N39: 2548 | O39: 76 | P39: 11.1 | Q39: 40 | R39: 2 | S39: 30 | V39: 49 | W39: =IF(V39>=52,100,IF(V39>=50,95,IF(V39>=48,90,IF(V39>=45,85,IF(V39>=42,80,IF(V39>=40,78,IF(V39>=38,76,IF(V39>=36,74,IF(V39>=34,72,IF(V39>=32,70,IF(V39>=30,68,IF(V39>=28,66,IF(V39>=26,64,IF(V39>=24,62,IF(V39>=22,60,IF(V39>=20,50,IF(V39>=18,40,IF(V39>=16,30,IF(V39>=14,20,IF(V39>=12,10,0)))))))))))))))))))) -> 90 | Z39: 145 | AA39: 50 | AB39: 223 | AC39: =IF(AB39<=205,100,IF(AB39<=212,95,IF(AB39<=219,90,IF(AB39<=227,85,IF(AB39<=235,80,IF(AB39<=240,78,IF(AB39<=245,76,IF(AB39<=250,74,IF(AB39<=255,72,IF(AB39<=260,70,IF(AB39<=265,68,IF(AB39<=270,66,IF(AB39<=275,64,IF(AB39<=280,62,IF(AB39<=285,60,IF(AB39<=295,50,IF(AB39<=305,40,IF(AB39<=315,30,IF(AB39<=325,20,IF(AB39<=335,10,0)))))))))))))))))))) -> 85 | AH39: 65.4 | AI39: 及格
A40: 23 | B40: 23013 | C40: 主校区3班 | D40: G110111200607158223 | E40: 1 | F40: 张涵钰 | G40: 2 | H40: 2006-07-15 | J40: 162.3 | K40: 74.8 | L40: 28.39648324 | M40: 60 | N40: 4270 | O40: 100 | P40: 12.1 | Q40: 0 | R40: 15 | S40: 76 | V40: 30 | W40: 68 | Z40: 135 | AA40: 30 | AB40: 290 | AC40: 50 | AH40: 51.4 | AI40: 不及格
A41: 23 | B41: 23013 | C41: 主校区3班 | D41: G110111200607262223 | E41: 1 | F41: 闫宇乔 | G41: 2 | H41: 2006-07-26 | J41: 166.8 | K41: 52.5 | L41: 18.86979625 | M41: 100 | N41: 1637 | O41: 50 | P41: 11.4 | Q41: 20 | R41: 14.5 | S41: 76 | V41: 41 | W41: 78 | Z41: 170 | AA41: 76 | AB41: 264 | AC41: 68 | AH41: 63.1 | AI41: 及格
A42: 23 | B42: 23013 | C42: 主校区3班 | D42: G11011120060708704X | E42: 1 | F42: 高薪雨 | G42: 2 | H42: 2006-07-08 | J42: 155.8 | K42: 54.1 | L42: 22.28755143 | M42: 100 | N42: 3362 | O42: 100 | P42: 9.9 | Q42: 68 | R42: 11.7 | S42: 72 | V42: 55 | W42: 100 | Z42: 165 | AA42: 72 | AB42: 237 | AC42: 78 | AH42: 83.6 | AI42: 良好
A43: 23 | B43: 23013 | C43: 主校区3班 | D43: G110111200512127029 | E43: 1 | F43: 任美伊 | G43: 2 | H43: 2005-12-12 | J43: 152.8 | K43: 37.8 | L43: 16.18993449 | M43: 100 | N43: 1972 | O43: 66 | P43: 11.5 | Q43: 20 | R43: 7.9 | S43: 66 | V43: 40 | W43: 78 | Z43: 140 | AA43: 40 | AB43: 240 | AC43: 78 | AH43: 62.9 | AI43: 及格
A44: 23 | B44: 23013 | C44: 主校区3班 | D44: G110111200604117063 | E44: 1 | F44: 刘桓榕 | G44: 2 | H44: 2006-04-11 | J44: 163 | K44: 57.1 | L44: 21.49121156 | M44: 100 | N44: 2075 | O44: 68 | P44: 11.5 | Q44: 20 | R44: 0.8 | S44: 20 | V44: 17 | W44: 30 | Z44: 140 | AA44: 40 | AB44: 240 | AC44: 78 | AH44: 53.8 | AI44: 不及格
A45: 23 | B45: 23013 | C45: 主校区3班 | D45: G341202200601275528 | E45: 1 | F45: 刘嘉馨 | G45: 2 | H45: 2006-01-27 | J45: 152.5 | K45: 39.5 | L45: 16.98468154 | M45: 100 | N45: 2209 | O45: 70 | P45: 11.5 | Q45: 20 | R45: 2 | S45: 30 | V45: 13 | W45: 10 | Z45: 135 | AA45: 30 | AB45: 256 | AC45: 70 | AH45: 50.5 | AI45: 不及格
A46: 23 | B46: 23013 | C46: 主校区3班 | D46: G110111200512065745 | E46: 1 | F46: 刘宇航 | G46: 2 | H46: 2005-12-06 | J46: 163 | K46: 43.5 | L46: 16.37246415 | M46: 100 | N46: 2708 | O46: 80 | P46: 13.3 | Q46: 0 | R46: 13.3 | S46: 74 | V46: 25 | W46: 62 | Z46: 125 | AA46: 10 | AB46: 264 | AC46: 68 | AH46: 55.2 | AI46: 不及格
A47: 23 | B47: 23013 | C47: 主校区3班 | D47: G110111200606067063 | E47: 1 | F47: 秦甜 | G47: 2 | H47: 2006-06-06 | J47: 156.3 | K47: 66.4 | L47: 27.18004199 | M47: 60 | N47: 2247 | O47: 70 | P47: 10.8 | Q47: 50 | R47: 15.8 | S47: 78 | V47: 33 | W47: 70 | Z47: 135 | AA47: 30 | AB47: 235 | AC47: 80 | AH47: 63.3 | AI47: 及格
A48: 23 | B48: 23013 | C48: 主校区3班 | D48: G110111200511067028 | E48: 1 | F48: 许晨 | G48: 2 | H48: 2005-11-06 | J48: 160.5 | K48: 56.9 | L48: 22.08829495 | M48: 100 | N48: 2857 | O48: 85 | P48: 11.6 | Q48: 10 | R48: 7.7 | S48: 66 | V48: 44 | W48: 80 | Z48: 115 | AA48: 0 | AB48: 230 | AC48: 80 | AH48: 60.35 | AI48: 及格
A49: 23 | B49: 23013 | C49: 主校区3班 | D49: G110111200607177045 | E49: 1 | F49: 张为 | G49: 2 | H49: 2006-07-17 | J49: 148.5 | K49: 46.1 | L49: 20.90489633 | M49: 100 | N49: 1951 | O49: 66 | P49: 9.4 | Q49: 72 | R49: 7.2 | S49: 64 | V49: 35 | W49: 72 | Z49: 140 | AA49: 40 | AB49: 233 | AC49: 80 | AH49: 72.9 | AI49: 及格
A50: 23 | B50: 23013 | C50: 主校区3班 | D50: G110107200607183125 | E50: 1 | F50: 张文睿 | G50: 2 | H50: 2006-07-18 | J50: 164.5 | K50: 58.4 | L50: 21.58147098 | M50: 100 | N50: 2947 | O50: 85 | P50: 10.3 | Q50: 64 | R50: 13 | S50: 74 | V50: 37 | W50: 74 | Z50: 160 | AA50: 68 | AB50: 207 | AC50: 95 | AH50: 81.15 | AI50: 良好
A51: 23 | B51: 23013 | C51: 主校区3班 | D51: G110106200604182745 | E51: 1 | F51: 魏雯 | G51: 2 | H51: 2006-04-18 | J51: 160 | K51: 56.1 | L51: 21.9140625 | M51: 100 | N51: 2619 | O51: 78 | P51: 11.4 | Q51: 20 | R51: 7.1 | S51: 64 | V51: 30 | W51: 68 | Z51: 120 | AA51: 0 | AB51: 241 | AC51: 76 | AH51: 59.1 | AI51: 不及格
A52: 23 | B52: 23013 | C52: 主校区3班 | D52: G110111200604257066 | E52: 1 | F52: 朱家瑜 | G52: 2 | H52: 2006-04-25 | J52: 169.7 | K52: 51.1 | L52: 17.74423234 | M52: 100 | N52: 2373 | O52: 74 | P52: 10.9 | Q52: 50 | R52: 11.5 | S52: 72 | V52: 30 | W52: 68 | Z52: 165 | AA52: 72 | AB52: 237 | AC52: 78 | AH52: 72.9 | AI52: 及格
A53: 23 | B53: 23013 | C53: 主校区3班 | D53: G110111200511197025 | E53: 1 | F53: 陈思宇 | G53: 2 | H53: 2005-11-19 | J53: 171.5 | K53: 104 | L53: 35.35941657 | M53: 60 | N53: 2577 | O53: 78 | P53: 14.1 | Q53: 0 | R53: 7.3 | S53: 64 | V53: 14 | W53: 20 | Z53: 110 | AA53: 0 | AB53: 354 | AC53: 0 | AH53: 29.1 | AI53: 不及格
A54: 23 | B54: 23013 | C54: 主校区3班 | D54: G11011120060108522X | E54: 1 | F54: 张宇萌 | G54: 2 | H54: 2006-01-08 | J54: 160.5 | K54: 51.1 | L54: 19.83676401 | M54: 100 | N54: 2647 | O54: 78 | P54: 12.1 | Q54: 0 | R54: 10.6 | S54: 70 | V54: 20 | W54: 50 | Z54: 145 | AA54: 50 | AB54: 245 | AC54: 76 | AH54: 58.9 | AI54: 不及格

Sheet Sheet2
A1: 年级编号 | B1: 班级编号 | C1: 班级名称 | D1: 学籍号 | E1: 民族代码 | F1: 姓名 | G1: 性别 | H1: 出生日期 | I1: 家庭住址 | J1: 身高 | K1: 体重 | L1: BMI | M1: BMI得分 | N1: 肺活量 | O1: 得分 | P1: 50米跑 | Q1: 得分 | R1: 坐位体前屈 | S1: 得分 | T1: 一分钟跳绳 | U1: 得分 | V1: 一分钟仰卧起坐 | W1: 得分 | X1: 50米×8往返跑 | Y1: 得分 | Z1: 立定跳远 | AA1: 得分 | AB1: 800米跑 | AC1: 得分 | AD1: 1000米跑 | AE1: 得分 | AF1: 引体向上 | AG1: 得分 | AH1: 总分 | AI1: 等级
